Workbook

Sheet HOME
F1: API LNAPL Transmissivity Workbook
F2: Calculation of LNAPL Transmissivity from Baildown Test Data
B4: STEP 1: RESET OUTPUT SUMMARY
G6: STEP 4: LNAPL TRANSMISSIVITY SUMMARY
B11: STEP 2: ENTER DATA & VIEW FIGURES
B12: STEP 3: CHOOSE WELL CONDITIONS | I12: Mean LNAPL Transmissivity (ft2/d)
I13: 25.6744914
I16: Standard Deviation (ft2/d)
I17: NA
I20: Coefficient of Variation
I21: NA

Sheet Data
A1: Well Designation: | B1: HMW-44C | C1: Example E3
A2: Date: | B2: 2009-08-12
A4: Ground Surface Elev (ft msl) | B4: 429.8 | C4: Enter These Data | E4: Drawdown
A5: Top of Casing Elev (ft msl) | B5: 429.4 | E5: Adjustment
A6: Well Casing Radius, rc (ft): | B6: 0.083 | C6: re1 | E6: (ft)
A7: Well Radius, rw (ft): | B7: 0.354 | E7: =Figures!C28 -> -0.01
A8: LNAPL Specific Yield, Sy: | B8: 0.175
A9: LNAPL Density Ratio, rr: | B9: 0.764
A10: Top of Screen (ft bgs): | B10: 27.2
A11: Bottom of Screen (ft bgs): | B11: 42.1
A12: LNAPL Baildown Vol. (gal.):
A13: Effective Radius, re3 (ft): | B13: =SQRT(B8*(B7^2-B6^2)+B6^2) -> 0.1661737795 | C13: Calculated Parameters
A14: Effective Radius, re2 (ft): | B14: =SQRT(-Figures!U27*B6^2+(Figures!U27+1)*B13^2) -> 0.1492603339
A15: Initial Casing LNAPL Vol. (gal.): | B15: =PI()*B6^2*(F21-E21)*7.48 -> 0.3415781725
A16: Initial Filter LNAPL Vol. (gal.): | B16: =IF(E21<B10,PI()*(B7^2-B6^2)*B8*(F21-B10)*7.48,PI()*(B7^2-B6^2)*B8*(F21-E21)*7.48) -> 1.027596703
C18: Enter Data Here | I18: Water Table | J18: LNAPL | M18: LNAPL | U18: LNAPL | V18: Ave.
I19: Depth | J19: Drawdown | L19: Average | M19: Discharge | N19: sn | O19: bn | P19: re | S19: DTP | T19: DTW | U19: Volume | V19: re
B20: Time (min) | C20: DTP (ft btoc) | D20: DTW (ft btoc) | E20: DTP (ft bgs) | F20: DTW (ft bgs) | I20: (ft) | J20: sn (ft) | L20: Time (min) | M20: Qn (ft3/d) | N20: (ft) | O20: (ft) | P20: (ft) | S20: (ft bgs) | T20: (ft bgs) | U20: (gallons) | V20: (ft)
A21: Initial Fluid Levels: | B21: 0 | C21: 27.14 | D21: 29.25 | E21: =C21+B4-B5 -> 27.54 | F21: =D21+B4-B5 -> 29.65 | I21: =E21+(1-B$9)*(F21-E21) -> 28.03796 | O21: =F21-E21 -> 2.11
A23: Enter Test Data: | B23: 2.766666664 | C23: 27.38 | D23: 28.4 | E23: =IF(B23>0,C23+B$4-B$5,NA()) -> 27.78 | F23: =IF(B23>0,D23+B$4-B$5,NA()) -> 28.8 | I23: =E23+(1-B$9)*(F23-E23) -> 28.02072 | J23: =E23-E$21-E$7 -> 0.25 | O23: =F23-E23 -> 1.02 | U23: 0 | V23: =MAX(V24:V81)/(MAX(L24:L81)-L24) -> 0.1661737795
B24: 3.46666666 | C24: 27.37 | D24: 28.45 | E24: =IF(B24>0,C24+B$4-B$5,NA()) -> 27.77 | F24: =IF(B24>0,D24+B$4-B$5,NA()) -> 28.85 | I24: =E24+(1-B$9)*(F24-E24) -> 28.02488 | J24: 0.24 | L24: =IF(B24>0,0.5*(B23+B24),0) -> 3.116666662 | M24: =IF(B24>0,1440*PI()*P24^2*(E23-E24+F24-F23)/(B24-B23),NA()) -> 10.70756139 | N24: =0.5*(J23+J24) -> 0.245 | O24: =F24-E24 -> 1.08 | P24: =IF(B24>0,re(B$10,E24,F24,B$6,B$14,B$13), ) -> 0.1661737795 | S24: =(E23+E24)/2 -> 27.775 | T24: =(F23+F24)/2 -> 28.825 | U24: =U23+M24*(B24-B23)*7.48/1440 -> 0.03893388273 | V24: 0
B25: 4.199999997 | C25: 27.36 | D25: 28.47 | E25: 27.76 | F25: 28.87 | I25: 28.02196 | J25: 0.23 | L25: =IF(B25>0,0.5*(B24+B25),0) -> 3.833333328 | M25: =IF(B25>0,1440*PI()*P25^2*(E24-E25+F25-F24)/(B25-B24),NA()) -> 5.110426972 | N25: =0.5*(J24+J25) -> 0.235 | O25: =F25-E25 -> 1.11 | P25: =IF(B25>0,re(B$10,E25,F25,B$6,B$14,B$13), ) -> 0.1661737795 | S25: =(E24+E25)/2 -> 27.765 | T25: 28.86 | U25: =U24+M25*(B25-B24)*7.48/1440 -> 0.05840082409 | V25: =IF(P25>0,V24+0.5*(P24+P25)*(L25-L24),0) -> 0.1190912086
B26: 4.76666666 | C26: 27.35 | D26: 28.49 | E26: 27.75 | F26: 28.89 | I26: 28.01904 | J26: 0.22 | L26: 4.483333328 | M26: 6.613493807 | N26: 0.225 | O26: 1.14 | P26: =IF(B26>0,re(B$10,E26,F26,B$6,B$14,B$13), ) -> 0.1661737795 | S26: 27.755 | T26: 28.88 | U26: 0.07786776546 | V26: =IF(P26>0,V25+0.5*(P25+P26)*(L26-L25),0) -> 0.2271041653
B27: 5.533333338 | C27: 27.34 | D27: 28.53 | E27: 27.74 | F27: 28.93 | I27: 28.02084 | J27: 0.21 | L27: 5.149999999 | M27: 8.147057411 | N27: 0.215 | O27: 1.19 | P27: =IF(B27>0,re(B$10,E27,F27,B$6,B$14,B$13), ) -> 0.1661737795 | S27: 27.745 | T27: 28.91 | U27: 0.1103126677 | V27: 0.3378866857
B28: 6.183333333 | C28: 27.33 | D28: 28.56 | E28: 27.73 | F28: 28.96 | I28: 28.02028 | J28: 0.2 | L28: 5.858333335 | M28: 7.687479992 | N28: 0.205 | O28: 1.23 | P28: =IF(B28>0,re(B$10,E28,F28,B$6,B$14,B$13), ) -> 0.1661737795 | S28: 27.735 | T28: 28.945 | U28: 0.1362685895 | V28: 0.4555931134
B29: 6.849999998 | C29: 27.32 | D29: 28.59 | E29: 27.72 | F29: 28.99 | I29: 28.01972 | J29: 0.19 | L29: 6.516666666 | M29: 7.495292947 | N29: 0.195 | O29: 1.27 | P29: =IF(B29>0,re(B$10,E29,F29,B$6,B$14,B$13), ) -> 0.1661737795 | S29: 27.725 | T29: 28.975 | U29: 0.1622245114 | V29: 0.564990851
B30: 7.516666664 | C30: 27.31 | D30: 28.62 | E30: 27.71 | F30: 29.02 | I30: 28.01916 | J30: 0.18 | L30: 7.183333331 | M30: 7.495292947 | N30: 0.185 | O30: 1.31 | P30: =IF(B30>0,re(B$10,E30,F30,B$6,B$14,B$13), ) -> 0.1661737795 | S30: 27.715 | T30: 29.005 | U30: 0.1881804332 | V30: 0.6757733705
B31: 8.350000003 | C31: 27.3 | D31: 28.66 | E31: 27.7 | F31: 29.06 | I31: 28.02096 | J31: 0.17 | L31: 7.933333333 | M31: 7.495292876 | N31: 0.175 | O31: 1.36 | P31: =IF(B31>0,re(B$10,E31,F31,B$6,B$14,B$13), ) -> 0.1661737795 | S31: 27.705 | T31: 29.04 | U31: 0.2206253355 | V31: 0.8004037055
B32: 8.866666665 | C32: 27.29 | D32: 28.68 | E32: 27.69 | F32: 29.08 | I32: 28.01804 | J32: 0.16 | L32: 8.608333334 | M32: 7.253509358 | N32: 0.165 | O32: 1.39 | P32: =IF(B32>0,re(B$10,E32,F32,B$6,B$14,B$13), ) -> 0.1661737795 | S32: 27.695 | T32: 29.07 | U32: 0.2400922768 | V32: 0.9125710068
B33: 9.966666671 | C33: 27.28 | D33: 28.73 | E33: 27.68 | F33: 29.13 | I33: 28.0222 | J33: 0.15 | L33: 9.416666668 | M33: 6.81390263 | N33: 0.155 | O33: 1.45 | P33: =IF(B33>0,re(B$10,E33,F33,B$6,B$14,B$13), ) -> 0.1661737795 | S33: 27.685 | T33: 29.105 | U33: 0.2790261596 | V33: 1.046894812
B34: 10.71666667 | C34: 27.27 | D34: 28.77 | E34: 27.67 | F34: 29.17 | I34: 28.024 | J34: 0.14 | L34: 10.34166667 | M34: 8.328103288 | N34: 0.145 | O34: 1.5 | P34: =IF(B34>0,re(B$10,E34,F34,B$6,B$14,B$13), ) -> 0.1661737795 | S34: 27.675 | T34: 29.15 | U34: 0.3114710618 | V34: 1.200605558
B35: 11.35 | C35: 27.26 | D35: 28.8 | E35: 27.66 | F35: 29.2 | I35: 28.02344 | J35: 0.13 | L35: 11.03333334 | M35: 7.889782016 | N35: 0.135 | O35: 1.54 | P35: =IF(B35>0,re(B$10,E35,F35,B$6,B$14,B$13), ) -> 0.1661737795 | S35: 27.665 | T35: 29.185 | U35: 0.3374269836 | V35: 1.315542422
B36: 12.01666667 | C36: 27.24 | D36: 28.87 | E36: 27.64 | F36: 29.27 | I36: 28.02468 | J36: 0.11 | L36: 11.68333334 | M36: 16.86440913 | N36: 0.12 | O36: 1.63 | P36: =IF(B36>0,re(B$10,E36,F36,B$6,B$14,B$13), ) -> 0.1661737795 | S36: 27.65 | T36: 29.235 | U36: 0.3958278077 | V36: 1.423555379
B37: 12.33333334 | C37: 27.23 | D37: 28.88 | E37: 27.63 | F37: 29.28 | I37: 28.0194 | J37: 0.1 | L37: 12.175 | M37: 7.889782016 | N37: 0.105 | O37: 1.65 | P37: =IF(B37>0,re(B$10,E37,F37,B$6,B$14,B$13), ) -> 0.1661737795 | S37: 27.635 | T37: 29.275 | U37: 0.4088057686 | V37: 1.505257487
B38: 12.71666667 | C38: 27.22 | D38: 28.9 | E38: 27.62 | F38: 29.3 | I38: 28.01648 | J38: 0.09 | L38: 12.525 | M38: 9.776468894 | N38: 0.095 | O38: 1.68 | P38: =IF(B38>0,re(B$10,E38,F38,B$6,B$14,B$13), ) -> 0.1661737795 | S38: 27.625 | T38: 29.29 | U38: 0.42827271 | V38: 1.563418311
B39: 13.13333333 | C39: 27.21 | D39: 28.91 | E39: 27.61 | F39: 29.31 | I39: 28.0112 | J39: 0.08 | L39: 12.925 | M39: 5.996234451 | N39: 0.085 | O39: 1.7 | P39: =IF(B39>0,re(B$10,E39,F39,B$6,B$14,B$13), ) -> 0.1661737795 | S39: 27.615 | T39: 29.305 | U39: 0.4412506709 | V39: 1.629887822
B40: 13.88333333 | C40: 27.2 | D40: 28.95 | E40: 27.6 | F40: 29.35 | I40: 28.013 | J40: 0.07 | L40: 13.50833333 | M40: 8.328103288 | N40: 0.075 | O40: 1.75 | P40: =IF(B40>0,re(B$10,E40,F40,B$6,B$14,B$13), ) -> 0.1661737795 | S40: 27.605 | T40: 29.33 | U40: 0.4736955732 | V40: 1.726822526
B41: 14.46666666 | C41: 27.19 | D41: 28.97 | E41: 27.59 | F41: 29.37 | I41: 28.01008 | J41: 0.06 | L41: 14.175 | M41: 6.424536797 | N41: 0.065 | O41: 1.78 | P41: =IF(B41>0,re(B$10,E41,F41,B$6,B$14,B$13), ) -> 0.1661737795 | S41: 27.595 | T41: 29.36 | U41: 0.4931625146 | V41: 1.837605046
B42: 15.74999999 | C42: 27.18 | D42: 28.99 | E42: 27.58 | F42: 29.39 | I42: 28.00716 | J42: 0.05 | L42: 15.10833333 | M42: 2.920244008 | N42: 0.055 | O42: 1.81 | P42: =IF(B42>0,re(B$10,E42,F42,B$6,B$14,B$13), ) -> 0.1661737795 | S42: 27.585 | T42: 29.38 | U42: 0.5126294559 | V42: 1.992700573
B43: 17.06666667 | C43: 27.17 | D43: 29.03 | E43: 27.57 | F43: 29.43 | I43: =E43+(1-B$9)*(F43-E43) -> 28.00896 | J43: 0.04 | L43: 16.40833333 | M43: 4.743856234 | N43: =0.5*(J42+J43) -> 0.045 | O43: =F43-E43 -> 1.86 | P43: =IF(B43>0,re(B$10,E43,F43,B$6,B$14,B$13), ) -> 0.1661737795 | S43: 27.575 | T43: 29.41 | U43: 0.5450743582 | V43: 2.208726487
B44: 19.18333333 | C44: 27.16 | D44: 29.05 | E44: 27.56 | F44: 29.45 | I44: 28.00604 | J44: 0.03 | L44: 18.125 | M44: 1.770541644 | N44: 0.035 | O44: 1.89 | P44: =IF(B44>0,re(B$10,E44,F44,B$6,B$14,B$13), ) -> 0.1661737795 | S44: 27.565 | T44: 29.44 | U44: 0.5645412996 | V44: 2.493991476
B45: 23.58333332 | C45: 27.15 | D45: 29.08 | E45: 27.55 | F45: 29.48 | I45: =E45+(1-B$9)*(F45-E45) -> 28.00548 | J45: 0.02 | L45: 21.38333333 | M45: 1.135650446 | N45: =0.5*(J44+J45) -> 0.025 | O45: =F45-E45 -> 1.93 | P45: =IF(B45>0,re(B$10,E45,F45,B$6,B$14,B$13), ) -> 0.1661737795 | S45: 27.555 | T45: 29.465 | U45: 0.5904972214 | V45: 3.035441039
B46: 27.23333333 | C46: 27.14 | D46: 29.11 | E46: 27.54 | F46: 29.51 | I46: =E46+(1-B$9)*(F46-E46) -> 28.00492 | J46: =E46-E$21-E$7 -> 0.01 | L46: 25.40833333 | M46: 1.369003273 | N46: =0.5*(J45+J46) -> 0.015 | O46: =F46-E46 -> 1.97 | P46: =IF(B46>0,re(B$10,E46,F46,B$6,B$14,B$13), ) -> 0.1661737795 | S46: =(E45+E46)/2 -> 27.545 | T46: =(F45+F46)/2 -> 29.495 | U46: =U45+M46*(B46-B45)*7.48/1440 -> 0.6164531432 | V46: 3.704290502
L47: 0 | P47: =IF(B47>0,re(B$10,E47,F47,B$6,B$14,B$13), ) -> 0 | V47: 0
L48: 0 | P48: =IF(B48>0,re(B$10,E48,F48,B$6,B$14,B$13), ) -> 0 | V48: 0
L49: 0 | P49: =IF(B49>0,re(B$10,E49,F49,B$6,B$14,B$13), ) -> 0 | V49: 0
L50: 0 | P50: =IF(B50>0,re(B$10,E50,F50,B$6,B$14,B$13), ) -> 0 | V50: 0
L51: 0 | P51: =IF(B51>0,re(B$10,E51,F51,B$6,B$14,B$13), ) -> 0 | V51: 0
L52: 0 | P52: =IF(B52>0,re(B$10,E52,F52,B$6,B$14,B$13), ) -> 0 | V52: 0
L53: 0 | P53: =IF(B53>0,re(B$10,E53,F53,B$6,B$14,B$13), ) -> 0 | V53: 0
L54: 0 | P54: =IF(B54>0,re(B$10,E54,F54,B$6,B$14,B$13), ) -> 0 | V54: 0
L55: 0 | P55: =IF(B55>0,re(B$10,E55,F55,B$6,B$14,B$13), ) -> 0 | V55: 0
L56: 0 | P56: =IF(B56>0,re(B$10,E56,F56,B$6,B$14,B$13), ) -> 0 | V56: 0
L57: 0 | P57: =IF(B57>0,re(B$10,E57,F57,B$6,B$14,B$13), ) -> 0 | V57: 0
L58: 0 | P58: =IF(B58>0,re(B$10,E58,F58,B$6,B$14,B$13), ) -> 0 | V58: 0
L59: 0 | P59: =IF(B59>0,re(B$10,E59,F59,B$6,B$14,B$13), ) -> 0 | V59: 0
L60: 0 | P60: =IF(B60>0,re(B$10,E60,F60,B$6,B$14,B$13), ) -> 0 | V60: 0
L61: 0 | P61: =IF(B61>0,re(B$10,E61,F61,B$6,B$14,B$13), ) -> 0 | V61: 0
L62: 0 | P62: =IF(B62>0,re(B$10,E62,F62,B$6,B$14,B$13), ) -> 0 | V62: 0
L63: 0 | P63: =IF(B63>0,re(B$10,E63,F63,B$6,B$14,B$13), ) -> 0 | V63: 0
L64: 0 | P64: =IF(B64>0,re(B$10,E64,F64,B$6,B$14,B$13), ) -> 0 | V64: 0
L65: 0 | P65: =IF(B65>0,re(B$10,E65,F65,B$6,B$14,B$13), ) -> 0 | V65: 0
L66: 0 | P66: =IF(B66>0,re(B$10,E66,F66,B$6,B$14,B$13), ) -> 0 | V66: 0
L67: 0 | P67: =IF(B67>0,re(B$10,E67,F67,B$6,B$14,B$13), ) -> 0 | V67: 0
L68: 0 | P68: =IF(B68>0,re(B$10,E68,F68,B$6,B$14,B$13), ) -> 0 | V68: 0
L69: 0 | P69: =IF(B69>0,re(B$10,E69,F69,B$6,B$14,B$13), ) -> 0 | V69: 0
L70: 0 | P70: =IF(B70>0,re(B$10,E70,F70,B$6,B$14,B$13), ) -> 0 | V70: 0
L71: 0 | P71: =IF(B71>0,re(B$10,E71,F71,B$6,B$14,B$13), ) -> 0 | V71: 0
L72: 0 | P72: =IF(B72>0,re(B$10,E72,F72,B$6,B$14,B$13), ) -> 0 | V72: 0
L73: 0 | P73: =IF(B73>0,re(B$10,E73,F73,B$6,B$14,B$13), ) -> 0 | V73: 0
L74: 0 | P74: =IF(B74>0,re(B$10,E74,F74,B$6,B$14,B$13), ) -> 0 | V74: 0
L75: 0 | P75: =IF(B75>0,re(B$10,E75,F75,B$6,B$14,B$13), ) -> 0 | V75: 0
L76: 0 | P76: =IF(B76>0,re(B$10,E76,F76,B$6,B$14,B$13), ) -> 0 | V76: 0
L77: 0 | P77: =IF(B77>0,re(B$10,E77,F77,B$6,B$14,B$13), ) -> 0 | V77: 0
L78: 0 | P78: =IF(B78>0,re(B$10,E78,F78,B$6,B$14,B$13), ) -> 0 | V78: 0
L79: 0 | P79: =IF(B79>0,re(B$10,E79,F79,B$6,B$14,B$13), ) -> 0 | V79: 0
L80: 0 | P80: =IF(B80>0,re(B$10,E80,F80,B$6,B$14,B$13), ) -> 0 | V80: 0
L81: 0 | P81: =IF(B81>0,re(B$10,E81,F81,B$6,B$14,B$13), ) -> 0 | V81: 0
P83: =AVERAGE(P24:P81) -> 0.06589649878

Sheet Figures
D2: Figure 1 | L2: Figure 2
T3: =0.8*MIN(Data!B23:B81) -> 2.213333331 | U3: =Data!E21 -> 27.54
T4: =MAX(Data!B23:B81) -> 27.23333333 | U4: =U3 -> 27.54
T5: =T3 -> 2.213333331 | U5: =Data!F21 -> 29.65
T6: =T4 -> 27.23333333 | U6: =U5 -> 29.65
T8: =T4/4 -> 6.808333332 | U8: =IF(V8<V9,V8,NA()) -> 26.54 | V8: =IF(Data!B10>Data!E21,Data!B10,Data!E21-1) -> 26.54
T9: =T8 -> 6.808333332 | U9: =IF(V8<V9,V9,NA()) -> 30.65 | V9: =IF(Data!B11<Data!F21,Data!B11,Data!F21+1) -> 30.65
D21: Figure 3 | L21: Figure 4
B22: Qn (ft3/d) | C22: sn (ft) | T22: bn | U22: sn
B23: 0 | C23: 0 | T23: 2.02 | U23: 0
B24: 7.5 | C24: 0.075 | T24: 0 | U24: 0.52
B27: Drawdown Adjust. | T27: J-ratio | U27: =(U23-U24)/(T23-T24) -> -0.2574257426
B28: Dsn (ft) | C28: -0.01
D41: Figure 5 | L41: Figure 6
D60: Figure 7 | L60: Figure 8
D79: Figure 9 | L79: Figure 10
T86: t (min) | U86: sn (ft)
T87: 12 | U87: 0.115
T88: 12 | U88: 0

Sheet B&R (hidden)
A1: Generalized Bouwer and Rice (1976)
A2: Well Designation: | C2: =IF(Data!B1 > 0,Data!B1,"") -> HMW-44C
A3: Date: | C3: =IF(Data!B2 > 0,Data!B2,"") -> 2009-08-12 | U3: y = A + B x
X4: B&R Type Curve
M5: Xi | N5: Yi | O5: X2 | P5: XY | Q5: (y-A-Bx)2 | R5: e | S5: count | T5: s/s0 | U5: SX | V5: =SUM(M6:M64) -> 49.36666666 | X5: t (min) | Y5: s/s0 | AA5: Xi | AB5: Yi
M6: =IF(Data!B23>=D$9,Data!B23-D$9,0) -> 0 | N6: =IF(S6>0,LN(Data!J23),0) -> 0 | O6: =M6^2 -> 0 | P6: =M6*N6 -> 0 | Q6: =IF(M6>0,(N6-V$11-V$12*M6)^2,0) -> 0 | R6: =IF(M6>0,(N6-V$11-V$12*M6)/SQRT(V$14),0) -> 0 | S6: =IF(Data!B23>'B&R'!D$9,1,0) -> 0 | T6: =IF(S6=0,NA(),EXP(N6)/EXP(V$19)) ->  | U6: SY | V6: =SUM(N6:N64) -> -33.1545642 | X6: 0 | Y6: =EXP(-2*E$12*(X6/1440)*(-J$15)/(Data!V$23^2*LN('B&R'!J$12))) -> 1 | AA6: =IF(S6>0,M6,NA()) ->  | AB6: =IF(T6>0,N6,NA()) -> 
B7: Enter early time cut-off for least-squares model fit | J7: Le/re | M7: =IF(Data!B24>=D$9,Data!B24-D$9,0) -> 0 | N7: =IF(S7>0,LN(Data!J24),0) -> 0 | O7: =M7^2 -> 0 | P7: =M7*N7 -> 0 | Q7: =IF(M7>0,(N7-V$11-V$12*M7)^2,0) -> 0 | R7: =IF(M7>0,(N7-V$11-V$12*M7)/SQRT(V$14),0) -> 0 | S7: =IF(Data!B24>'B&R'!D$9,1,0) -> 0 | T7: =IF(S7=0,NA(),EXP(N7)/EXP(V$19)) ->  | U7: SX2 | V7: =SUM(O6:O64) -> 469.1027775 | X7: =X6+1.05*(MAX(M$6:M$64)/30) -> 0.5331666665 | Y7: =EXP(-2*E$12*(X7/1440)*(-J$15)/(Data!V$23^2*LN('B&R'!J$12))) -> 0.9239106147 | AA7: =IF(S7>0,M7,NA()) ->  | AB7: =IF(T7>0,N7,NA()) -> 
J8: =IF(Data!E21<Data!B10,(Data!F21-Data!B10)/Data!B13,(Data!F21-Data!E21)/Data!B13) -> 12.69755076 | M8: =IF(Data!B25>=D$9,Data!B25-D$9,0) -> 0 | N8: =IF(S8>0,LN(Data!J25),0) -> 0 | O8: 0 | P8: 0 | Q8: 0 | R8: 0 | S8: =IF(Data!B25>'B&R'!D$9,1,0) -> 0 | U8: SXY | V8: =SUM(P6:P64) -> -185.5386226 | X8: =X7+1.05*(MAX(M$6:M$64)/30) -> 1.066333333 | Y8: =EXP(-2*E$12*(X8/1440)*(-J$15)/(Data!V$23^2*LN('B&R'!J$12))) -> 0.8536108239
C9: Timecut | D9: 12 | E9: <- Enter or change value here | J9: C | M9: =IF(Data!B26>=D$9,Data!B26-D$9,0) -> 0 | N9: =IF(S9>0,LN(Data!J26),0) -> 0 | O9: 0 | P9: 0 | Q9: 0 | R9: 0 | S9: =IF(Data!B26>'B&R'!D$9,1,0) -> 0 | U9: N | V9: =SUM(S6:S64) -> 11 | X9: 1.5995 | Y9: =EXP(-2*E$12*(X9/1440)*(-J$15)/(Data!V$23^2*LN('B&R'!J$12))) -> 0.788660101
J10: =IF(J8<2000,0.792+0.03993*J8-0.00005743^J8^2+0.00000003858*J8^3-0.000000000009659*J8^4,13.5) -> 1.299091932 | M10: =IF(Data!B27>=D$9,Data!B27-D$9,0) -> 0 | N10: =IF(S10>0,LN(Data!J27),0) -> 0 | O10: 0 | P10: 0 | Q10: 0 | R10: 0 | S10: =IF(Data!B27>'B&R'!D$9,1,0) -> 0 | U10: D | V10: =V9*V7-V5^2 -> 2723.062775 | X10: 2.132666666 | Y10: =EXP(-2*E$12*(X10/1440)*(-J$15)/(Data!V$23^2*LN('B&R'!J$12))) -> 0.7286514387
J11: R/re | M11: =IF(Data!B28>=D$9,Data!B28-D$9,0) -> 0 | N11: =IF(S11>0,LN(Data!J28),0) -> 0 | O11: 0 | P11: 0 | Q11: 0 | R11: 0 | S11: =IF(Data!B28>'B&R'!D$9,1,0) -> 0 | U11: A | V11: =(V7*V6-V5*V8)/V10 -> -2.34789843 | X11: 2.665833333 | Y11: =EXP(-2*E$12*(X11/1440)*(-J$15)/(Data!V$23^2*LN('B&R'!J$12))) -> 0.6732087986
B12: Model Results: | D12: Tn (ft2/d) = | E12: =1440*V22*(-V12) -> 21.42248888 | F12: +/- | G12: =1440*V22*SQRT(V15) -> 0.9557177355 | H12: ft2/d | J12: =EXP(((1.1/LN(J8))+J10/J8)^-1) -> 6.479645276 | M12: =IF(Data!B29>=D$9,Data!B29-D$9,0) -> 0 | N12: =IF(S12>0,LN(Data!J29),0) -> 0 | O12: 0 | P12: 0 | Q12: 0 | R12: 0 | S12: =IF(Data!B29>'B&R'!D$9,1,0) -> 0 | U12: B | V12: =(V9*V8-V5*V6)/V10 -> -0.1484337907 | X12: 3.198999999 | Y12: =EXP(-2*E$12*(X12/1440)*(-J$15)/(Data!V$23^2*LN('B&R'!J$12))) -> 0.621984755
M13: =IF(Data!B30>=D$9,Data!B30-D$9,0) -> 0 | N13: =IF(S13>0,LN(Data!J30),0) -> 0 | O13: 0 | P13: 0 | Q13: 0 | R13: 0 | S13: =IF(Data!B30>'B&R'!D$9,1,0) -> 0 | X13: 3.732166666 | Y13: =EXP(-2*E$12*(X13/1440)*(-J$15)/(Data!V$23^2*LN('B&R'!J$12))) -> 0.5746583173
J14: J-Ratio | M14: =IF(Data!B31>=D$9,Data!B31-D$9,0) -> 0 | N14: =IF(S14>0,LN(Data!J31),0) -> 0 | O14: 0 | P14: 0 | Q14: 0 | R14: 0 | S14: =IF(Data!B31>'B&R'!D$9,1,0) -> 0 | U14: sy2 | V14: =SUM(Q6:Q64)/(V9-2) -> 0.01085550331 | X14: 4.265333332 | Y14: =EXP(-2*E$12*(X14/1440)*(-J$15)/(Data!V$23^2*LN('B&R'!J$12))) -> 0.5309329192
J15: =Figures!U27 -> -0.2574257426 | M15: =IF(Data!B32>=D$9,Data!B32-D$9,0) -> 0 | N15: =IF(S15>0,LN(Data!J32),0) -> 0 | O15: 0 | P15: 0 | Q15: 0 | R15: 0 | S15: =IF(Data!B32>'B&R'!D$9,1,0) -> 0 | U15: sB2 | V15: =V9*V14/V10 -> 4.385155476e-05 | X15: 4.798499999 | Y15: =EXP(-2*E$12*(X15/1440)*(-J$15)/(Data!V$23^2*LN('B&R'!J$12))) -> 0.4905345597
M16: =IF(Data!B33>=D$9,Data!B33-D$9,0) -> 0 | N16: =IF(S16>0,LN(Data!J33),0) -> 0 | O16: 0 | P16: 0 | Q16: 0 | R16: 0 | S16: =IF(Data!B33>'B&R'!D$9,1,0) -> 0 | X16: 5.331666665 | Y16: =EXP(-2*E$12*(X16/1440)*(-J$15)/(Data!V$23^2*LN('B&R'!J$12))) -> 0.4532100866
M17: =IF(Data!B34>=D$9,Data!B34-D$9,0) -> 0 | N17: =IF(S17>0,LN(Data!J34),0) -> 0 | O17: 0 | P17: 0 | Q17: 0 | R17: 0 | S17: =IF(Data!B34>'B&R'!D$9,1,0) -> 0 | X17: 5.864833332 | Y17: =EXP(-2*E$12*(X17/1440)*(-J$15)/(Data!V$23^2*LN('B&R'!J$12))) -> 0.4187256097
M18: =IF(Data!B35>=D$9,Data!B35-D$9,0) -> 0 | N18: =IF(S18>0,LN(Data!J35),0) -> 0 | O18: 0 | P18: 0 | Q18: 0 | R18: 0 | S18: =IF(Data!B35>'B&R'!D$9,1,0) -> 0 | U18: Plot Model Line | X18: 6.397999998 | Y18: =EXP(-2*E$12*(X18/1440)*(-J$15)/(Data!V$23^2*LN('B&R'!J$12))) -> 0.3868650354
M19: =IF(Data!B36>=D$9,Data!B36-D$9,0) -> 0.01666666777 | N19: =IF(S19>0,LN(Data!J36),0) -> -2.207274913 | O19: 0.0002777778145 | P19: -0.03678791765 | Q19: 0.02047686986 | R19: 1.373430865 | S19: =IF(Data!B36>'B&R'!D$9,1,0) -> 1 | T19: 1.150991238 | U19: 0 | V19: =V11 -> -2.34789843 | X19: 6.931166665 | Y19: =EXP(-2*E$12*(X19/1440)*(-J$15)/(Data!V$23^2*LN('B&R'!J$12))) -> 0.3574287127 | AA19: 0.01666666777 | AB19: -2.207274913
J20: Coef. Of | M20: =IF(Data!B37>=D$9,Data!B37-D$9,0) -> 0.3333333351 | N20: =IF(S20>0,LN(Data!J37),0) -> -2.302585093 | O20: 0.1111111123 | P20: -0.7675283684 | Q20: 0.008985384468 | R20: 0.9097945904 | S20: =IF(Data!B37>'B&R'!D$9,1,0) -> 1 | T20: 1.046355671 | U20: =MAX(M6:M64) -> 15.23333333 | V20: =V11+V12*U20 -> -4.609039841 | X20: 7.464333331 | Y20: =EXP(-2*E$12*(X20/1440)*(-J$15)/(Data!V$23^2*LN('B&R'!J$12))) -> 0.3302321816 | AA20: 0.3333333351 | AB20: -2.302585093
J21: Variation | M21: =IF(Data!B38>=D$9,Data!B38-D$9,0) -> 0.7166666742 | N21: =IF(S21>0,LN(Data!J38),0) -> -2.407945609 | O21: 0.513611122 | P21: -1.725694371 | Q21: 0.002146503448 | R21: 0.4446730541 | S21: =IF(Data!B38>'B&R'!D$9,1,0) -> 1 | T21: 0.9417201038 | X21: 7.997499998 | Y21: =EXP(-2*E$12*(X21/1440)*(-J$15)/(Data!V$23^2*LN('B&R'!J$12))) -> 0.3051050179 | AA21: 0.7166666742 | AB21: -2.407945609
J22: =G12/E12 -> 0.04461282445 | M22: =IF(Data!B39>=D$9,Data!B39-D$9,0) -> 1.133333334 | N22: =IF(S22>0,LN(Data!J39),0) -> -2.525728644 | O22: 1.284444445 | P22: -2.862492464 | Q22: 9.226084907e-05 | R22: -0.09218998441 | S22: =IF(Data!B39>'B&R'!D$9,1,0) -> 1 | T22: 0.8370845367 | U22: factor | V22: =Data!V23^2*LN('B&R'!J12)/(2*(-Figures!U27)) -> 0.1002246747 | X22: 8.530666664 | Y22: =EXP(-2*E$12*(X22/1440)*(-J$15)/(Data!V$23^2*LN('B&R'!J$12))) -> 0.2818897646 | AA22: 1.133333334 | AB22: -2.525728644
M23: =IF(Data!B40>=D$9,Data!B40-D$9,0) -> 1.883333331 | N23: =IF(S23>0,LN(Data!J40),0) -> -2.659260037 | O23: 3.546944435 | P23: -5.008273063 | Q23: 0.001011958881 | R23: -0.3053208417 | S23: =IF(Data!B40>'B&R'!D$9,1,0) -> 1 | T23: 0.7324489696 | X23: 9.063833331 | Y23: =EXP(-2*E$12*(X23/1440)*(-J$15)/(Data!V$23^2*LN('B&R'!J$12))) -> 0.2604409457 | AA23: 1.883333331 | AB23: -2.659260037
M24: =IF(Data!B41>=D$9,Data!B41-D$9,0) -> 2.466666664 | N24: =IF(S24>0,LN(Data!J41),0) -> -2.813410717 | O24: 6.084444432 | P24: -6.939746428 | Q24: 0.009875510483 | R24: -0.9537944591 | S24: =IF(Data!B41>'B&R'!D$9,1,0) -> 1 | T24: 0.6278134025 | X24: 9.596999997 | Y24: =EXP(-2*E$12*(X24/1440)*(-J$15)/(Data!V$23^2*LN('B&R'!J$12))) -> 0.2406241542 | AA24: 2.466666664 | AB24: -2.813410717
M25: =IF(Data!B42>=D$9,Data!B42-D$9,0) -> 3.749999994 | N25: =IF(S25>0,LN(Data!J42),0) -> -2.995732274 | O25: 14.06249995 | P25: -11.23399601 | Q25: 0.00831874039 | R25: -0.8753944796 | S25: =IF(Data!B42>'B&R'!D$9,1,0) -> 1 | T25: 0.5231778355 | U25: s0 (ft) | V25: =EXP(V19) -> 0.0955697979 | X25: 10.13016666 | Y25: =EXP(-2*E$12*(X25/1440)*(-J$15)/(Data!V$23^2*LN('B&R'!J$12))) -> 0.2223152103 | AA25: 3.749999994 | AB25: -2.995732274
M26: =IF(Data!B43>=D$9,Data!B43-D$9,0) -> 5.066666675 | N26: =IF(S26>0,LN(Data!J43),0) -> -3.218875825 | O26: 25.67111119 | P26: -16.30897087 | Q26: 0.01414026681 | R26: -1.141310519 | S26: =IF(Data!B43>'B&R'!D$9,1,0) -> 1 | T26: 0.4185422684 | X26: 10.66333333 | Y26: =EXP(-2*E$12*(X26/1440)*(-J$15)/(Data!V$23^2*LN('B&R'!J$12))) -> 0.2053993826 | AA26: 5.066666675 | AB26: -3.218875825
M27: =IF(Data!B44>=D$9,Data!B44-D$9,0) -> 7.183333333 | N27: =IF(S27>0,LN(Data!J44),0) -> -3.506557897 | O27: 51.60027778 | P27: -25.18877423 | Q27: 0.00853962114 | R27: -0.8869401598 | S27: =IF(Data!B44>'B&R'!D$9,1,0) -> 1 | T27: 0.3139067013 | X27: 11.1965 | Y27: =EXP(-2*E$12*(X27/1440)*(-J$15)/(Data!V$23^2*LN('B&R'!J$12))) -> 0.1897706698 | AA27: 7.183333333 | AB27: -3.506557897
M28: =IF(Data!B45>=D$9,Data!B45-D$9,0) -> 11.58333332 | N28: =IF(S28>0,LN(Data!J45),0) -> -3.912023005 | O28: 134.1736109 | P28: -45.31426645 | Q28: 0.02409743922 | R28: 1.489911474 | S28: =IF(Data!B45>'B&R'!D$9,1,0) -> 1 | T28: 0.2092711342 | X28: 11.72966666 | Y28: =EXP(-2*E$12*(X28/1440)*(-J$15)/(Data!V$23^2*LN('B&R'!J$12))) -> 0.1753311362 | AA28: 11.58333332 | AB28: -3.912023005
M29: =IF(Data!B46>=D$9,Data!B46-D$9,0) -> 15.23333333 | N29: =IF(S29>0,LN(Data!J46),0) -> -4.605170186 | O29: 232.0544443 | P29: -70.15209248 | Q29: 1.497423079e-05 | R29: 0.03714046007 | S29: =IF(Data!B46>'B&R'!D$9,1,0) -> 1 | T29: 0.1046355671 | X29: 12.26283333 | Y29: =EXP(-2*E$12*(X29/1440)*(-J$15)/(Data!V$23^2*LN('B&R'!J$12))) -> 0.1619902978 | AA29: 15.23333333 | AB29: -4.605170186
M30: =IF(Data!B47>=D$9,Data!B47-D$9,0) -> 0 | N30: =IF(S30>0,LN(Data!J47),0) -> 0 | O30: 0 | P30: 0 | Q30: 0 | R30: 0 | S30: =IF(Data!B47>'B&R'!D$9,1,0) -> 0 | X30: 12.796 | Y30: =EXP(-2*E$12*(X30/1440)*(-J$15)/(Data!V$23^2*LN('B&R'!J$12))) -> 0.1496645556
M31: =IF(Data!B48>=D$9,Data!B48-D$9,0) -> 0 | N31: =IF(S31>0,LN(Data!J48),0) -> 0 | O31: 0 | P31: 0 | Q31: 0 | R31: 0 | S31: =IF(Data!B48>'B&R'!D$9,1,0) -> 0 | X31: 13.32916666 | Y31: =EXP(-2*E$12*(X31/1440)*(-J$15)/(Data!V$23^2*LN('B&R'!J$12))) -> 0.1382766716
M32: =IF(Data!B49>=D$9,Data!B49-D$9,0) -> 0 | N32: =IF(S32>0,LN(Data!J49),0) -> 0 | O32: 0 | P32: 0 | Q32: 0 | R32: 0 | S32: =IF(Data!B49>'B&R'!D$9,1,0) -> 0 | X32: 13.86233333 | Y32: =EXP(-2*E$12*(X32/1440)*(-J$15)/(Data!V$23^2*LN('B&R'!J$12))) -> 0.1277552846
M33: =IF(Data!B50>=D$9,Data!B50-D$9,0) -> 0 | N33: =IF(S33>0,LN(Data!J50),0) -> 0 | O33: 0 | P33: 0 | Q33: 0 | R33: 0 | S33: =IF(Data!B50>'B&R'!D$9,1,0) -> 0 | X33: 14.3955 | Y33: =EXP(-2*E$12*(X33/1440)*(-J$15)/(Data!V$23^2*LN('B&R'!J$12))) -> 0.1180344636
M34: =IF(Data!B51>=D$9,Data!B51-D$9,0) -> 0 | N34: =IF(S34>0,LN(Data!J51),0) -> 0 | O34: 0 | P34: 0 | Q34: 0 | R34: 0 | S34: =IF(Data!B51>'B&R'!D$9,1,0) -> 0 | X34: 14.92866666 | Y34: =EXP(-2*E$12*(X34/1440)*(-J$15)/(Data!V$23^2*LN('B&R'!J$12))) -> 0.1090532938
B35: C coefficient calculated from Eq. 6.5(c) of Butler, The Design, Performance, and | M35: =IF(Data!B52>=D$9,Data!B52-D$9,0) -> 0 | N35: =IF(S35>0,LN(Data!J52),0) -> 0 | O35: 0 | P35: 0 | Q35: 0 | R35: 0 | S35: =IF(Data!B52>'B&R'!D$9,1,0) -> 0 | X35: 15.46183333 | Y35: =EXP(-2*E$12*(X35/1440)*(-J$15)/(Data!V$23^2*LN('B&R'!J$12))) -> 0.1007554957
B36: Analysis of Slug Tests, CRC Press, 2000. | M36: =IF(Data!B53>=D$9,Data!B53-D$9,0) -> 0 | N36: =IF(S36>0,LN(Data!J53),0) -> 0 | O36: 0 | P36: 0 | Q36: 0 | R36: 0 | S36: =IF(Data!B53>'B&R'!D$9,1,0) -> 0 | X36: 15.995 | Y36: =EXP(-2*E$12*(X36/1440)*(-J$15)/(Data!V$23^2*LN('B&R'!J$12))) -> 0.09308907195
M37: =IF(Data!B54>=D$9,Data!B54-D$9,0) -> 0 | N37: =IF(S37>0,LN(Data!J54),0) -> 0 | O37: 0 | P37: 0 | Q37: 0 | R37: 0 | S37: =IF(Data!B54>'B&R'!D$9,1,0) -> 0
M38: =IF(Data!B55>=D$9,Data!B55-D$9,0) -> 0 | N38: =IF(S38>0,LN(Data!J55),0) -> 0 | O38: 0 | P38: 0 | Q38: 0 | R38: 0 | S38: =IF(Data!B55>'B&R'!D$9,1,0) -> 0
M39: =IF(Data!B56>=D$9,Data!B56-D$9,0) -> 0 | N39: =IF(S39>0,LN(Data!J56),0) -> 0 | O39: 0 | P39: 0 | Q39: 0 | R39: 0 | S39: =IF(Data!B56>'B&R'!D$9,1,0) -> 0 | X39: =TRUNC(100*E12)/100 -> 21.42
M40: =IF(Data!B57>=D$9,Data!B57-D$9,0) -> 0 | N40: =IF(S40>0,LN(Data!J57),0) -> 0 | O40: 0 | P40: 0 | Q40: 0 | R40: 0 | S40: =IF(Data!B57>'B&R'!D$9,1,0) -> 0 | X40: =X39 -> 21.42
M41: =IF(Data!B58>=D$9,Data!B58-D$9,0) -> 0 | N41: =IF(S41>0,LN(Data!J58),0) -> 0 | O41: 0 | P41: 0 | Q41: 0 | R41: 0 | S41: =IF(Data!B58>'B&R'!D$9,1,0) -> 0 | X41: =CONCATENATE(" T = ",X40," ft2/d") -> T = 21.42 ft2/d
M42: =IF(Data!B59>=D$9,Data!B59-D$9,0) -> 0 | N42: =IF(S42>0,LN(Data!J59),0) -> 0 | O42: 0 | P42: 0 | Q42: 0 | R42: 0 | S42: =IF(Data!B59>'B&R'!D$9,1,0) -> 0
M43: =IF(Data!B60>=D$9,Data!B60-D$9,0) -> 0 | N43: =IF(S43>0,LN(Data!J60),0) -> 0 | O43: 0 | P43: 0 | Q43: 0 | R43: 0 | S43: =IF(Data!B60>'B&R'!D$9,1,0) -> 0
M44: =IF(Data!B61>=D$9,Data!B61-D$9,0) -> 0 | N44: =IF(S44>0,LN(Data!J61),0) -> 0 | O44: 0 | P44: 0 | Q44: 0 | R44: 0 | S44: =IF(Data!B61>'B&R'!D$9,1,0) -> 0
M45: =IF(Data!B62>=D$9,Data!B62-D$9,0) -> 0 | N45: =IF(S45>0,LN(Data!J62),0) -> 0 | O45: 0 | P45: 0 | Q45: 0 | R45: 0 | S45: =IF(Data!B62>'B&R'!D$9,1,0) -> 0
M46: =IF(Data!B63>=D$9,Data!B63-D$9,0) -> 0 | N46: =IF(S46>0,LN(Data!J63),0) -> 0 | O46: 0 | P46: 0 | Q46: 0 | R46: 0 | S46: =IF(Data!B63>'B&R'!D$9,1,0) -> 0
M47: =IF(Data!B64>=D$9,Data!B64-D$9,0) -> 0 | N47: =IF(S47>0,LN(Data!J64),0) -> 0 | O47: 0 | P47: 0 | Q47: 0 | R47: 0 | S47: =IF(Data!B64>'B&R'!D$9,1,0) -> 0
M48: =IF(Data!B65>=D$9,Data!B65-D$9,0) -> 0 | N48: =IF(S48>0,LN(Data!J65),0) -> 0 | O48: =M48^2 -> 0 | P48: =M48*N48 -> 0 | Q48: 0 | R48: =IF(M48>0,(N48-V$11-V$12*M48)/SQRT(V$14),0) -> 0 | S48: =IF(Data!B65>'B&R'!D$9,1,0) -> 0 | T48: =IF(S48=0,NA(),EXP(N48)/EXP(V$19)) -> 
M49: =IF(Data!B66>=D$9,Data!B66-D$9,0) -> 0 | N49: =IF(S49>0,LN(Data!J66),0) -> 0 | O49: 0 | P49: 0 | Q49: 0 | R49: 0 | S49: =IF(Data!B66>'B&R'!D$9,1,0) -> 0
M50: =IF(Data!B67>=D$9,Data!B67-D$9,0) -> 0 | N50: =IF(S50>0,LN(Data!J67),0) -> 0 | O50: 0 | P50: 0 | Q50: 0 | R50: 0 | S50: =IF(Data!B67>'B&R'!D$9,1,0) -> 0
M51: =IF(Data!B68>=D$9,Data!B68-D$9,0) -> 0 | N51: =IF(S51>0,LN(Data!J68),0) -> 0 | O51: 0 | P51: 0 | Q51: 0 | R51: 0 | S51: =IF(Data!B68>'B&R'!D$9,1,0) -> 0
M52: =IF(Data!B69>=D$9,Data!B69-D$9,0) -> 0 | N52: =IF(S52>0,LN(Data!J69),0) -> 0 | O52: 0 | P52: 0 | Q52: 0 | R52: 0 | S52: =IF(Data!B69>'B&R'!D$9,1,0) -> 0
M53: =IF(Data!B70>=D$9,Data!B70-D$9,0) -> 0 | N53: =IF(S53>0,LN(Data!J70),0) -> 0 | O53: 0 | P53: 0 | Q53: 0 | R53: 0 | S53: =IF(Data!B70>'B&R'!D$9,1,0) -> 0
M54: =IF(Data!B71>=D$9,Data!B71-D$9,0) -> 0 | N54: =IF(S54>0,LN(Data!J71),0) -> 0 | O54: 0 | P54: 0 | Q54: 0 | R54: 0 | S54: =IF(Data!B71>'B&R'!D$9,1,0) -> 0
M55: =IF(Data!B72>=D$9,Data!B72-D$9,0) -> 0 | N55: =IF(S55>0,LN(Data!J72),0) -> 0 | O55: 0 | P55: 0 | Q55: 0 | R55: 0 | S55: =IF(Data!B72>'B&R'!D$9,1,0) -> 0
M56: =IF(Data!B73>=D$9,Data!B73-D$9,0) -> 0 | N56: =IF(S56>0,LN(Data!J73),0) -> 0 | O56: 0 | P56: 0 | Q56: 0 | R56: 0 | S56: =IF(Data!B73>'B&R'!D$9,1,0) -> 0
M57: =IF(Data!B74>=D$9,Data!B74-D$9,0) -> 0 | N57: =IF(S57>0,LN(Data!J74),0) -> 0 | O57: 0 | P57: 0 | Q57: 0 | R57: 0 | S57: =IF(Data!B74>'B&R'!D$9,1,0) -> 0
M58: =IF(Data!B75>=D$9,Data!B75-D$9,0) -> 0 | N58: =IF(S58>0,LN(Data!J75),0) -> 0 | O58: 0 | P58: 0 | Q58: 0 | R58: 0 | S58: =IF(Data!B75>'B&R'!D$9,1,0) -> 0
M59: =IF(Data!B76>=D$9,Data!B76-D$9,0) -> 0 | N59: =IF(S59>0,LN(Data!J76),0) -> 0 | O59: 0 | P59: 0 | Q59: 0 | R59: 0 | S59: =IF(Data!B76>'B&R'!D$9,1,0) -> 0
M60: =IF(Data!B77>=D$9,Data!B77-D$9,0) -> 0 | N60: =IF(S60>0,LN(Data!J77),0) -> 0 | O60: 0 | P60: 0 | Q60: 0 | R60: 0 | S60: =IF(Data!B77>'B&R'!D$9,1,0) -> 0
M61: =IF(Data!B78>=D$9,Data!B78-D$9,0) -> 0 | N61: =IF(S61>0,LN(Data!J78),0) -> 0 | O61: =M61^2 -> 0 | P61: =M61*N61 -> 0 | Q61: 0 | R61: =IF(M61>0,(N61-V$11-V$12*M61)/SQRT(V$14),0) -> 0 | S61: =IF(Data!B78>'B&R'!D$9,1,0) -> 0 | T61: =IF(S61=0,NA(),EXP(N61)/EXP(V$19)) -> 
M62: =IF(Data!B79>=D$9,Data!B79-D$9,0) -> 0 | N62: =IF(S62>0,LN(Data!J79),0) -> 0 | O62: 0 | P62: 0 | Q62: 0 | R62: 0 | S62: =IF(Data!B79>'B&R'!D$9,1,0) -> 0
M63: =IF(Data!B80>=D$9,Data!B80-D$9,0) -> 0 | N63: =IF(S63>0,LN(Data!J80),0) -> 0 | O63: 0 | P63: 0 | Q63: 0 | R63: 0 | S63: =IF(Data!B80>'B&R'!D$9,1,0) -> 0
M64: =IF(Data!B81>=D$9,Data!B81-D$9,0) -> 0 | N64: =IF(S64>0,LN(Data!J81),0) -> 0 | O64: 0 | P64: 0 | Q64: 0 | R64: 0 | S64: =IF(Data!B81>'B&R'!D$9,1,0) -> 0

Sheet C&J (hidden)
A1: Cooper and Jacob (1946)
A2: Well Designation: | C2: =IF(Data!B1 > 0,Data!B1,"") -> HMW-44C | W2: =E10 -> 8 | X2: =E9 -> 12 | Y2: 0
A3: Date: | C3: =IF(Data!B2 > 0,Data!B2,"") -> 2009-08-12 | P3: 0 | Q3: =MAX(P9:Q58) -> 0.2241437719 | W3: =W2 -> 8 | X3: =X2 -> 12 | Y3: =J50 -> 70
P4: 0 | Q4: =Q3 -> 0.2241437719
X5: =MAX(T9:T66)+10 -> 35.40833333
N7: Index | O7: ti | P7: Vi (meas) | Q7: Vi (calc) | R7: SE | T7: Time | U7: Qn/sn | W7: Index | X7: Time | Y7: Qn/sn | Z7: A-Time
B8: Enter early time cut-off for least-squares model fit
C9: Timecut (min): | E9: 12 | F9: <- Enter or change values here | N9: 1 | O9: =IF(Data!L24>=E$9,Data!L24-E$10,0) -> 0 | P9: =IF(O9>0,7.48*Data!M24*(Data!B24-Data!B23)/1440,0) -> 0 | Q9: =IF(O9>0,7.48*(4*PI()*(E$16/1440)*Data!N24)*(Data!B24-Data!B23)/LN(0.56146/((Data!P24^2*'C&J'!E$15)/(4*('C&J'!E$16/1440)*O9))),0) -> 0 | R9: =(P9-Q9)^2 -> 0 | T9: =Data!L24 -> 3.116666662 | U9: =Data!M24/Data!N24 -> 43.70433221 | W9: 0 | X9: =2+(X$5-2)*W9/50 -> 2 | Y9: =4*PI()*E$18/LN(0.56146/(Data!V$23^2*'C&J'!E$15/(4*'C&J'!E$18*'C&J'!X9/1440))) -> 109.1220996 | Z9: =X9+E$10 -> 10
B10: Time Adjustment (min): | E10: 8 | N10: 2 | O10: =IF(Data!L25>=E$9,Data!L25-E$10,0) -> 0 | P10: =IF(O10>0,P9+7.48*Data!M25*(Data!B25-Data!B24)/1440,0) -> 0 | Q10: =IF(O10>0,Q9+7.48*(4*PI()*(E$16/1440)*Data!N25)*(Data!B25-Data!B24)/LN(0.56146/((Data!P25^2*'C&J'!E$15)/(4*('C&J'!E$16/1440)*O10))),0) -> 0 | R10: =(P10-Q10)^2 -> 0 | T10: =Data!L25 -> 3.833333328 | U10: =Data!M25/Data!N25 -> 21.74649776 | W10: 1 | X10: =2+(X$5-2)*W10/50 -> 2.668166667 | Y10: =4*PI()*E$18/LN(0.56146/(Data!V$23^2*'C&J'!E$15/(4*'C&J'!E$18*'C&J'!X10/1440))) -> 100.0134496 | Z10: =X10+E$10 -> 10.66816667
N11: 3 | O11: =IF(Data!L26>=E$9,Data!L26-E$10,0) -> 0 | P11: =IF(O11>0,P10+7.48*Data!M26*(Data!B26-Data!B25)/1440,0) -> 0 | Q11: =IF(O11>0,Q10+7.48*(4*PI()*(E$16/1440)*Data!N26)*(Data!B26-Data!B25)/LN(0.56146/((Data!P26^2*'C&J'!E$15)/(4*('C&J'!E$16/1440)*O11))),0) -> 0 | R11: 0 | T11: =Data!L26 -> 4.483333328 | U11: =Data!M26/Data!N26 -> 29.39330581 | W11: 2 | X11: 3.336333333 | Y11: =4*PI()*E$18/LN(0.56146/(Data!V$23^2*'C&J'!E$15/(4*'C&J'!E$18*'C&J'!X11/1440))) -> 93.93427376 | Z11: 11.33633333
B12: Trial Sn: | E12: d | F12: <-- Enter d for default or enter Sn value | N12: 4 | O12: =IF(Data!L27>=E$9,Data!L27-E$10,0) -> 0 | P12: =IF(O12>0,P11+7.48*Data!M27*(Data!B27-Data!B26)/1440,0) -> 0 | Q12: =IF(O12>0,Q11+7.48*(4*PI()*(E$16/1440)*Data!N27)*(Data!B27-Data!B26)/LN(0.56146/((Data!P27^2*'C&J'!E$15)/(4*('C&J'!E$16/1440)*O12))),0) -> 0 | R12: 0 | T12: =Data!L27 -> 5.149999999 | U12: =Data!M27/Data!N27 -> 37.89329029 | W12: 3 | X12: 4.0045 | Y12: =4*PI()*E$18/LN(0.56146/(Data!V$23^2*'C&J'!E$15/(4*'C&J'!E$18*'C&J'!X12/1440))) -> 89.49104417 | Z12: 12.0045
N13: 5 | O13: =IF(Data!L28>=E$9,Data!L28-E$10,0) -> 0 | P13: =IF(O13>0,P12+7.48*Data!M28*(Data!B28-Data!B27)/1440,0) -> 0 | Q13: =IF(O13>0,Q12+7.48*(4*PI()*(E$16/1440)*Data!N28)*(Data!B28-Data!B27)/LN(0.56146/((Data!P28^2*'C&J'!E$15)/(4*('C&J'!E$16/1440)*O13))),0) -> 0 | R13: 0 | T13: =Data!L28 -> 5.858333335 | U13: =Data!M28/Data!N28 -> 37.4999024 | W13: 4 | X13: 4.672666666 | Y13: =4*PI()*E$18/LN(0.56146/(Data!V$23^2*'C&J'!E$15/(4*'C&J'!E$18*'C&J'!X13/1440))) -> 86.05030743 | Z13: 12.67266667
B14: Root-Mean-Square Error: | E14: =SQRT(SUM(R9:R58)) -> 0.01986558794 | F14: <-- Minimize this using "Solver" | N14: 6 | O14: =IF(Data!L29>=E$9,Data!L29-E$10,0) -> 0 | P14: =IF(O14>0,P13+7.48*Data!M29*(Data!B29-Data!B28)/1440,0) -> 0 | Q14: =IF(O14>0,Q13+7.48*(4*PI()*(E$16/1440)*Data!N29)*(Data!B29-Data!B28)/LN(0.56146/((Data!P29^2*'C&J'!E$15)/(4*('C&J'!E$16/1440)*O14))),0) -> 0 | R14: 0 | T14: =Data!L29 -> 6.516666666 | U14: =Data!M29/Data!N29 -> 38.43739973 | W14: 5 | X14: 5.340833333 | Y14: =4*PI()*E$18/LN(0.56146/(Data!V$23^2*'C&J'!E$15/(4*'C&J'!E$18*'C&J'!X14/1440))) -> 83.27714722 | Z14: 13.34083333
E15: =IF(E12="d",0.025*SQRT(E16),E12) -> 0.131061182 | F15: <-- Working Sn | N15: 7 | O15: =IF(Data!L30>=E$9,Data!L30-E$10,0) -> 0 | P15: =IF(O15>0,P14+7.48*Data!M30*(Data!B30-Data!B29)/1440,0) -> 0 | Q15: =IF(O15>0,Q14+7.48*(4*PI()*(E$16/1440)*Data!N30)*(Data!B30-Data!B29)/LN(0.56146/((Data!P30^2*'C&J'!E$15)/(4*('C&J'!E$16/1440)*O15))),0) -> 0 | R15: 0 | T15: =Data!L30 -> 7.183333331 | U15: =Data!M30/Data!N30 -> 40.51509701 | W15: 6 | X15: 6.008999999 | Y15: =4*PI()*E$18/LN(0.56146/(Data!V$23^2*'C&J'!E$15/(4*'C&J'!E$18*'C&J'!X15/1440))) -> 80.97554898 | Z15: 14.009
B16: Trial Tn (ft2/d): | E16: 27.48325347 | F16: <-- By changing Tn through "Solver" | N16: 8 | O16: =IF(Data!L31>=E$9,Data!L31-E$10,0) -> 0 | P16: =IF(O16>0,P15+7.48*Data!M31*(Data!B31-Data!B30)/1440,0) -> 0 | Q16: =IF(O16>0,Q15+7.48*(4*PI()*(E$16/1440)*Data!N31)*(Data!B31-Data!B30)/LN(0.56146/((Data!P31^2*'C&J'!E$15)/(4*('C&J'!E$16/1440)*O16))),0) -> 0 | R16: 0 | T16: =Data!L31 -> 7.933333333 | U16: =Data!M31/Data!N31 -> 42.830245 | W16: 7 | X16: 6.677166666 | Y16: =4*PI()*E$18/LN(0.56146/(Data!V$23^2*'C&J'!E$15/(4*'C&J'!E$18*'C&J'!X16/1440))) -> 79.0220612 | Z16: 14.67716667
G17: Add constraint Tn > 0.00001 | N17: 9 | O17: =IF(Data!L32>=E$9,Data!L32-E$10,0) -> 0 | P17: =IF(O17>0,P16+7.48*Data!M32*(Data!B32-Data!B31)/1440,0) -> 0 | Q17: =IF(O17>0,Q16+7.48*(4*PI()*(E$16/1440)*Data!N32)*(Data!B32-Data!B31)/LN(0.56146/((Data!P32^2*'C&J'!E$15)/(4*('C&J'!E$16/1440)*O17))),0) -> 0 | R17: 0 | T17: =Data!L32 -> 8.608333334 | U17: =Data!M32/Data!N32 -> 43.96066278 | W17: 8 | X17: 7.345333332 | Y17: =4*PI()*E$18/LN(0.56146/(Data!V$23^2*'C&J'!E$15/(4*'C&J'!E$18*'C&J'!X17/1440))) -> 77.33449064 | Z17: 15.34533333
B18: Model Result: | D18: Tn (ft2/d) = | E18: =E16 -> 27.48325347 | N18: 10 | O18: =IF(Data!L33>=E$9,Data!L33-E$10,0) -> 0 | P18: =IF(O18>0,P17+7.48*Data!M33*(Data!B33-Data!B32)/1440,0) -> 0 | Q18: =IF(O18>0,Q17+7.48*(4*PI()*(E$16/1440)*Data!N33)*(Data!B33-Data!B32)/LN(0.56146/((Data!P33^2*'C&J'!E$15)/(4*('C&J'!E$16/1440)*O18))),0) -> 0 | R18: 0 | T18: =Data!L33 -> 9.416666668 | U18: =Data!M33/Data!N33 -> 43.96066213 | W18: 9 | X18: 8.013499999 | Y18: =4*PI()*E$18/LN(0.56146/(Data!V$23^2*'C&J'!E$15/(4*'C&J'!E$18*'C&J'!X18/1440))) -> 75.85567486 | Z18: 16.0135
N19: 11 | O19: =IF(Data!L34>=E$9,Data!L34-E$10,0) -> 0 | P19: =IF(O19>0,P18+7.48*Data!M34*(Data!B34-Data!B33)/1440,0) -> 0 | Q19: =IF(O19>0,Q18+7.48*(4*PI()*(E$16/1440)*Data!N34)*(Data!B34-Data!B33)/LN(0.56146/((Data!P34^2*'C&J'!E$15)/(4*('C&J'!E$16/1440)*O19))),0) -> 0 | R19: 0 | T19: =Data!L34 -> 10.34166667 | U19: =Data!M34/Data!N34 -> 57.43519509 | W19: 10 | X19: 8.681666665 | Y19: =4*PI()*E$18/LN(0.56146/(Data!V$23^2*'C&J'!E$15/(4*'C&J'!E$18*'C&J'!X19/1440))) -> 74.54443728 | Z19: 16.68166667
N20: 12 | O20: =IF(Data!L35>=E$9,Data!L35-E$10,0) -> 0 | P20: =IF(O20>0,P19+7.48*Data!M35*(Data!B35-Data!B34)/1440,0) -> 0 | Q20: =IF(O20>0,Q19+7.48*(4*PI()*(E$16/1440)*Data!N35)*(Data!B35-Data!B34)/LN(0.56146/((Data!P35^2*'C&J'!E$15)/(4*('C&J'!E$16/1440)*O20))),0) -> 0 | R20: 0 | T20: =Data!L35 -> 11.03333334 | U20: =Data!M35/Data!N35 -> 58.44282975 | W20: 11 | X20: 9.349833332 | Y20: =4*PI()*E$18/LN(0.56146/(Data!V$23^2*'C&J'!E$15/(4*'C&J'!E$18*'C&J'!X20/1440))) -> 73.37024547 | Z20: 17.34983333
N21: 13 | O21: =IF(Data!L36>=E$9,Data!L36-E$10,0) -> 0 | P21: =IF(O21>0,P20+7.48*Data!M36*(Data!B36-Data!B35)/1440,0) -> 0 | Q21: =IF(O21>0,Q20+7.48*(4*PI()*(E$16/1440)*Data!N36)*(Data!B36-Data!B35)/LN(0.56146/((Data!P36^2*'C&J'!E$15)/(4*('C&J'!E$16/1440)*O21))),0) -> 0 | R21: 0 | T21: =Data!L36 -> 11.68333334 | U21: =Data!M36/Data!N36 -> 140.5367427 | W21: 12 | X21: 10.018 | Y21: =4*PI()*E$18/LN(0.56146/(Data!V$23^2*'C&J'!E$15/(4*'C&J'!E$18*'C&J'!X21/1440))) -> 72.30990365 | Z21: 18.018
N22: 14 | O22: =IF(Data!L37>=E$9,Data!L37-E$10,0) -> 4.175000001 | P22: =IF(O22>0,P21+7.48*Data!M37*(Data!B37-Data!B36)/1440,0) -> 0.01297796091 | Q22: =IF(O22>0,Q21+7.48*(4*PI()*(E$16/1440)*Data!N37)*(Data!B37-Data!B36)/LN(0.56146/((Data!P37^2*'C&J'!E$15)/(4*('C&J'!E$16/1440)*O22))),0) -> 0.01529126094 | R22: 5.35135702e-06 | T22: =Data!L37 -> 12.175 | U22: =Data!M37/Data!N37 -> 75.14078111 | W22: 13 | X22: 10.68616666 | Y22: =4*PI()*E$18/LN(0.56146/(Data!V$23^2*'C&J'!E$15/(4*'C&J'!E$18*'C&J'!X22/1440))) -> 71.34542243 | Z22: 18.68616666
N23: 15 | O23: =IF(Data!L38>=E$9,Data!L38-E$10,0) -> 4.525000005 | P23: =IF(O23>0,P22+7.48*Data!M38*(Data!B38-Data!B37)/1440,0) -> 0.03244490227 | Q23: =IF(O23>0,Q22+7.48*(4*PI()*(E$16/1440)*Data!N38)*(Data!B38-Data!B37)/LN(0.56146/((Data!P38^2*'C&J'!E$15)/(4*('C&J'!E$16/1440)*O23))),0) -> 0.03170020042 | R23: 5.545808489e-07 | T23: =Data!L38 -> 12.525 | U23: =Data!M38/Data!N38 -> 102.9101989 | W23: 14 | X23: 11.35433333 | Y23: =4*PI()*E$18/LN(0.56146/(Data!V$23^2*'C&J'!E$15/(4*'C&J'!E$18*'C&J'!X23/1440))) -> 70.46260027 | Z23: 19.35433333
N24: 16 | O24: =IF(Data!L39>=E$9,Data!L39-E$10,0) -> 4.925000004 | P24: =IF(O24>0,P23+7.48*Data!M39*(Data!B39-Data!B38)/1440,0) -> 0.04542286318 | Q24: =IF(O24>0,Q23+7.48*(4*PI()*(E$16/1440)*Data!N39)*(Data!B39-Data!B38)/LN(0.56146/((Data!P39^2*'C&J'!E$15)/(4*('C&J'!E$16/1440)*O24))),0) -> 0.04732610091 | R24: 3.622313838e-06 | T24: =Data!L39 -> 12.925 | U24: =Data!M39/Data!N39 -> 70.54393472 | W24: 15 | X24: 12.0225 | Y24: =4*PI()*E$18/LN(0.56146/(Data!V$23^2*'C&J'!E$15/(4*'C&J'!E$18*'C&J'!X24/1440))) -> 69.65005133 | Z24: 20.0225
N25: 17 | O25: =IF(Data!L40>=E$9,Data!L40-E$10,0) -> 5.508333332 | P25: =IF(O25>0,P24+7.48*Data!M40*(Data!B40-Data!B39)/1440,0) -> 0.07786776546 | Q25: =IF(O25>0,Q24+7.48*(4*PI()*(E$16/1440)*Data!N40)*(Data!B40-Data!B39)/LN(0.56146/((Data!P40^2*'C&J'!E$15)/(4*('C&J'!E$16/1440)*O25))),0) -> 0.07147879808 | R25: 4.081890409e-05 | T25: =Data!L40 -> 13.50833333 | U25: =Data!M40/Data!N40 -> 111.0413772 | W25: 16 | X25: 12.69066666 | Y25: =4*PI()*E$18/LN(0.56146/(Data!V$23^2*'C&J'!E$15/(4*'C&J'!E$18*'C&J'!X25/1440))) -> 68.89852257 | Z25: 20.69066666
N26: 18 | O26: =IF(Data!L41>=E$9,Data!L41-E$10,0) -> 6.174999997 | P26: =IF(O26>0,P25+7.48*Data!M41*(Data!B41-Data!B40)/1440,0) -> 0.09733470682 | Q26: =IF(O26>0,Q25+7.48*(4*PI()*(E$16/1440)*Data!N41)*(Data!B41-Data!B40)/LN(0.56146/((Data!P41^2*'C&J'!E$15)/(4*('C&J'!E$16/1440)*O26))),0) -> 0.08732616676 | R26: 0.0001001708741 | T26: =Data!L41 -> 14.175 | U26: =Data!M41/Data!N41 -> 98.83902764 | W26: 17 | X26: 13.35883333 | Y26: =4*PI()*E$18/LN(0.56146/(Data!V$23^2*'C&J'!E$15/(4*'C&J'!E$18*'C&J'!X26/1440))) -> 68.20040346 | Z26: 21.35883333
N27: 19 | O27: =IF(Data!L42>=E$9,Data!L42-E$10,0) -> 7.108333329 | P27: =IF(O27>0,P26+7.48*Data!M42*(Data!B42-Data!B41)/1440,0) -> 0.1168016482 | Q27: =IF(O27>0,Q26+7.48*(4*PI()*(E$16/1440)*Data!N42)*(Data!B42-Data!B41)/LN(0.56146/((Data!P42^2*'C&J'!E$15)/(4*('C&J'!E$16/1440)*O27))),0) -> 0.1158899507 | R27: 8.311922881e-07 | T27: =Data!L42 -> 15.10833333 | U27: =Data!M42/Data!N42 -> 53.0953456 | W27: 18 | X27: 14.027 | Y27: =4*PI()*E$18/LN(0.56146/(Data!V$23^2*'C&J'!E$15/(4*'C&J'!E$18*'C&J'!X27/1440))) -> 67.54936708 | Z27: 22.027
N28: 20 | O28: =IF(Data!L43>=E$9,Data!L43-E$10,0) -> 8.408333334 | P28: =IF(O28>0,P27+7.48*Data!M43*(Data!B43-Data!B42)/1440,0) -> 0.1492465505 | Q28: =IF(O28>0,Q27+7.48*(4*PI()*(E$16/1440)*Data!N43)*(Data!B43-Data!B42)/LN(0.56146/((Data!P43^2*'C&J'!E$15)/(4*('C&J'!E$16/1440)*O28))),0) -> 0.1389920714 | R28: 0.0001051543403 | T28: =Data!L43 -> 16.40833333 | U28: =Data!M43/Data!N43 -> 105.4190274 | W28: 19 | X28: 14.69516666 | Y28: =4*PI()*E$18/LN(0.56146/(Data!V$23^2*'C&J'!E$15/(4*'C&J'!E$18*'C&J'!X28/1440))) -> 66.94010294 | Z28: 22.69516666
N29: 21 | O29: =IF(Data!L44>=E$9,Data!L44-E$10,0) -> 10.125 | P29: =IF(O29>0,P28+7.48*Data!M44*(Data!B44-Data!B43)/1440,0) -> 0.1687134918 | Q29: =IF(O29>0,Q28+7.48*(4*PI()*(E$16/1440)*Data!N44)*(Data!B44-Data!B43)/LN(0.56146/((Data!P44^2*'C&J'!E$15)/(4*('C&J'!E$16/1440)*O29))),0) -> 0.1667567358 | R29: 3.828893972e-06 | T29: =Data!L44 -> 18.125 | U29: =Data!M44/Data!N44 -> 50.58690412 | W29: 20 | X29: 15.36333333 | Y29: =4*PI()*E$18/LN(0.56146/(Data!V$23^2*'C&J'!E$15/(4*'C&J'!E$18*'C&J'!X29/1440))) -> 66.36811497 | Z29: 23.36333333
N30: 22 | O30: =IF(Data!L45>=E$9,Data!L45-E$10,0) -> 13.38333333 | P30: =IF(O30>0,P29+7.48*Data!M45*(Data!B45-Data!B44)/1440,0) -> 0.1946694136 | Q30: =IF(O30>0,Q29+7.48*(4*PI()*(E$16/1440)*Data!N45)*(Data!B45-Data!B44)/LN(0.56146/((Data!P45^2*'C&J'!E$15)/(4*('C&J'!E$16/1440)*O30))),0) -> 0.2057115934 | R30: 0.0001219297328 | T30: =Data!L45 -> 21.38333333 | U30: =Data!M45/Data!N45 -> 45.42601786 | W30: 21 | X30: 16.0315 | Y30: =4*PI()*E$18/LN(0.56146/(Data!V$23^2*'C&J'!E$15/(4*'C&J'!E$18*'C&J'!X30/1440))) -> 65.82956665 | Z30: 24.0315
N31: 23 | O31: =IF(Data!L46>=E$9,Data!L46-E$10,0) -> 17.40833333 | P31: =IF(O31>0,P30+7.48*Data!M46*(Data!B46-Data!B45)/1440,0) -> 0.2206253355 | Q31: =IF(O31>0,Q30+7.48*(4*PI()*(E$16/1440)*Data!N46)*(Data!B46-Data!B45)/LN(0.56146/((Data!P46^2*'C&J'!E$15)/(4*('C&J'!E$16/1440)*O31))),0) -> 0.2241437719 | R31: 1.237939482e-05 | T31: =Data!L46 -> 25.40833333 | U31: =Data!M46/Data!N46 -> 91.2668849 | W31: 22 | X31: 16.69966666 | Y31: =4*PI()*E$18/LN(0.56146/(Data!V$23^2*'C&J'!E$15/(4*'C&J'!E$18*'C&J'!X31/1440))) -> 65.3211608 | Z31: 24.69966666
N32: 24 | O32: =IF(Data!L47>=E$9,Data!L47-E$10,0) -> 0 | P32: =IF(O32>0,P31+7.48*Data!M47*(Data!B47-Data!B46)/1440,0) -> 0 | Q32: =IF(O32>0,Q31+7.48*(4*PI()*(E$16/1440)*Data!N47)*(Data!B47-Data!B46)/LN(0.56146/((Data!P47^2*'C&J'!E$15)/(4*('C&J'!E$16/1440)*O32))),0) -> 0 | R32: 0 | T32: =Data!L47 -> 0 | U32: =Data!M47/Data!N47 ->  | W32: 23 | X32: 17.36783333 | Y32: =4*PI()*E$18/LN(0.56146/(Data!V$23^2*'C&J'!E$15/(4*'C&J'!E$18*'C&J'!X32/1440))) -> 64.84004521 | Z32: 25.36783333
N33: 25 | O33: =IF(Data!L48>=E$9,Data!L48-E$10,0) -> 0 | P33: =IF(O33>0,P32+7.48*Data!M48*(Data!B48-Data!B47)/1440,0) -> 0 | Q33: =IF(O33>0,Q32+7.48*(4*PI()*(E$16/1440)*Data!N48)*(Data!B48-Data!B47)/LN(0.56146/((Data!P48^2*'C&J'!E$15)/(4*('C&J'!E$16/1440)*O33))),0) -> 0 | R33: 0 | T33: =Data!L48 -> 0 | U33: =Data!M48/Data!N48 ->  | W33: 24 | X33: 18.036 | Y33: =4*PI()*E$18/LN(0.56146/(Data!V$23^2*'C&J'!E$15/(4*'C&J'!E$18*'C&J'!X33/1440))) -> 64.38373775 | Z33: 26.036
N34: 26 | O34: =IF(Data!L49>=E$9,Data!L49-E$10,0) -> 0 | P34: =IF(O34>0,P33+7.48*Data!M49*(Data!B49-Data!B48)/1440,0) -> 0 | Q34: =IF(O34>0,Q33+7.48*(4*PI()*(E$16/1440)*Data!N49)*(Data!B49-Data!B48)/LN(0.56146/((Data!P49^2*'C&J'!E$15)/(4*('C&J'!E$16/1440)*O34))),0) -> 0 | R34: 0 | T34: =Data!L49 -> 0 | U34: =Data!M49/Data!N49 ->  | W34: 25 | X34: 18.70416666 | Y34: =4*PI()*E$18/LN(0.56146/(Data!V$23^2*'C&J'!E$15/(4*'C&J'!E$18*'C&J'!X34/1440))) -> 63.95006639 | Z34: 26.70416666
N35: 27 | O35: =IF(Data!L50>=E$9,Data!L50-E$10,0) -> 0 | P35: =IF(O35>0,P34+7.48*Data!M50*(Data!B50-Data!B49)/1440,0) -> 0 | Q35: =IF(O35>0,Q34+7.48*(4*PI()*(E$16/1440)*Data!N50)*(Data!B50-Data!B49)/LN(0.56146/((Data!P50^2*'C&J'!E$15)/(4*('C&J'!E$16/1440)*O35))),0) -> 0 | R35: 0 | T35: =Data!L50 -> 0 | U35: =Data!M50/Data!N50 ->  | W35: 26 | X35: 19.37233333 | Y35: =4*PI()*E$18/LN(0.56146/(Data!V$23^2*'C&J'!E$15/(4*'C&J'!E$18*'C&J'!X35/1440))) -> 63.53712075 | Z35: 27.37233333
N36: 28 | O36: =IF(Data!L51>=E$9,Data!L51-E$10,0) -> 0 | P36: =IF(O36>0,P35+7.48*Data!M51*(Data!B51-Data!B50)/1440,0) -> 0 | Q36: =IF(O36>0,Q35+7.48*(4*PI()*(E$16/1440)*Data!N51)*(Data!B51-Data!B50)/LN(0.56146/((Data!P51^2*'C&J'!E$15)/(4*('C&J'!E$16/1440)*O36))),0) -> 0 | R36: 0 | T36: =Data!L51 -> 0 | U36: =Data!M51/Data!N51 ->  | W36: 27 | X36: 20.0405 | Y36: =4*PI()*E$18/LN(0.56146/(Data!V$23^2*'C&J'!E$15/(4*'C&J'!E$18*'C&J'!X36/1440))) -> 63.14321261 | Z36: 28.0405
N37: 29 | O37: =IF(Data!L52>=E$9,Data!L52-E$10,0) -> 0 | P37: =IF(O37>0,P36+7.48*Data!M52*(Data!B52-Data!B51)/1440,0) -> 0 | Q37: =IF(O37>0,Q36+7.48*(4*PI()*(E$16/1440)*Data!N52)*(Data!B52-Data!B51)/LN(0.56146/((Data!P52^2*'C&J'!E$15)/(4*('C&J'!E$16/1440)*O37))),0) -> 0 | R37: 0 | T37: =Data!L52 -> 0 | U37: =Data!M52/Data!N52 ->  | W37: 28 | X37: 20.70866666 | Y37: =4*PI()*E$18/LN(0.56146/(Data!V$23^2*'C&J'!E$15/(4*'C&J'!E$18*'C&J'!X37/1440))) -> 62.76684352 | Z37: 28.70866666
N38: 30 | O38: =IF(Data!L53>=E$9,Data!L53-E$10,0) -> 0 | P38: =IF(O38>0,P37+7.48*Data!M53*(Data!B53-Data!B52)/1440,0) -> 0 | Q38: =IF(O38>0,Q37+7.48*(4*PI()*(E$16/1440)*Data!N53)*(Data!B53-Data!B52)/LN(0.56146/((Data!P53^2*'C&J'!E$15)/(4*('C&J'!E$16/1440)*O38))),0) -> 0 | R38: 0 | T38: =Data!L53 -> 0 | U38: =Data!M53/Data!N53 ->  | W38: 29 | X38: 21.37683333 | Y38: =4*PI()*E$18/LN(0.56146/(Data!V$23^2*'C&J'!E$15/(4*'C&J'!E$18*'C&J'!X38/1440))) -> 62.40667798 | Z38: 29.37683333
N39: 31 | O39: =IF(Data!L54>=E$9,Data!L54-E$10,0) -> 0 | P39: =IF(O39>0,P38+7.48*Data!M54*(Data!B54-Data!B53)/1440,0) -> 0 | Q39: =IF(O39>0,Q38+7.48*(4*PI()*(E$16/1440)*Data!N54)*(Data!B54-Data!B53)/LN(0.56146/((Data!P54^2*'C&J'!E$15)/(4*('C&J'!E$16/1440)*O39))),0) -> 0 | R39: 0 | T39: =Data!L54 -> 0 | U39: =Data!M54/Data!N54 ->  | W39: 30 | X39: 22.045 | Y39: =4*PI()*E$18/LN(0.56146/(Data!V$23^2*'C&J'!E$15/(4*'C&J'!E$18*'C&J'!X39/1440))) -> 62.06152121 | Z39: 30.045
N40: 32 | O40: =IF(Data!L55>=E$9,Data!L55-E$10,0) -> 0 | P40: =IF(O40>0,P39+7.48*Data!M55*(Data!B55-Data!B54)/1440,0) -> 0 | Q40: =IF(O40>0,Q39+7.48*(4*PI()*(E$16/1440)*Data!N55)*(Data!B55-Data!B54)/LN(0.56146/((Data!P55^2*'C&J'!E$15)/(4*('C&J'!E$16/1440)*O40))),0) -> 0 | R40: 0 | T40: =Data!L55 -> 0 | U40: =Data!M55/Data!N55 ->  | W40: 31 | X40: 22.71316666 | Y40: =4*PI()*E$18/LN(0.56146/(Data!V$23^2*'C&J'!E$15/(4*'C&J'!E$18*'C&J'!X40/1440))) -> 61.73030043 | Z40: 30.71316666
N41: 33 | O41: =IF(Data!L56>=E$9,Data!L56-E$10,0) -> 0 | P41: =IF(O41>0,P40+7.48*Data!M56*(Data!B56-Data!B55)/1440,0) -> 0 | Q41: =IF(O41>0,Q40+7.48*(4*PI()*(E$16/1440)*Data!N56)*(Data!B56-Data!B55)/LN(0.56146/((Data!P56^2*'C&J'!E$15)/(4*('C&J'!E$16/1440)*O41))),0) -> 0 | R41: 0 | T41: =Data!L56 -> 0 | U41: =Data!M56/Data!N56 ->  | W41: 32 | X41: 23.38133333 | Y41: =4*PI()*E$18/LN(0.56146/(Data!V$23^2*'C&J'!E$15/(4*'C&J'!E$18*'C&J'!X41/1440))) -> 61.4120492 | Z41: 31.38133333
N42: 34 | O42: =IF(Data!L57>=E$9,Data!L57-E$10,0) -> 0 | P42: =IF(O42>0,P41+7.48*Data!M57*(Data!B57-Data!B56)/1440,0) -> 0 | Q42: =IF(O42>0,Q41+7.48*(4*PI()*(E$16/1440)*Data!N57)*(Data!B57-Data!B56)/LN(0.56146/((Data!P57^2*'C&J'!E$15)/(4*('C&J'!E$16/1440)*O42))),0) -> 0 | R42: 0 | T42: =Data!L57 -> 0 | U42: =Data!M57/Data!N57 ->  | W42: 33 | X42: 24.0495 | Y42: =4*PI()*E$18/LN(0.56146/(Data!V$23^2*'C&J'!E$15/(4*'C&J'!E$18*'C&J'!X42/1440))) -> 61.10589412 | Z42: 32.0495
N43: 35 | O43: =IF(Data!L58>=E$9,Data!L58-E$10,0) -> 0 | P43: =IF(O43>0,P42+7.48*Data!M58*(Data!B58-Data!B57)/1440,0) -> 0 | Q43: =IF(O43>0,Q42+7.48*(4*PI()*(E$16/1440)*Data!N58)*(Data!B58-Data!B57)/LN(0.56146/((Data!P58^2*'C&J'!E$15)/(4*('C&J'!E$16/1440)*O43))),0) -> 0 | R43: 0 | T43: =Data!L58 -> 0 | U43: =Data!M58/Data!N58 ->  | W43: 34 | X43: 24.71766666 | Y43: =4*PI()*E$18/LN(0.56146/(Data!V$23^2*'C&J'!E$15/(4*'C&J'!E$18*'C&J'!X43/1440))) -> 60.81104353 | Z43: 32.71766666
N44: 36 | O44: =IF(Data!L59>=E$9,Data!L59-E$10,0) -> 0 | P44: =IF(O44>0,P43+7.48*Data!M59*(Data!B59-Data!B58)/1440,0) -> 0 | Q44: =IF(O44>0,Q43+7.48*(4*PI()*(E$16/1440)*Data!N59)*(Data!B59-Data!B58)/LN(0.56146/((Data!P59^2*'C&J'!E$15)/(4*('C&J'!E$16/1440)*O44))),0) -> 0 | R44: 0 | T44: =Data!L59 -> 0 | U44: =Data!M59/Data!N59 ->  | W44: 35 | X44: 25.38583333 | Y44: =4*PI()*E$18/LN(0.56146/(Data!V$23^2*'C&J'!E$15/(4*'C&J'!E$18*'C&J'!X44/1440))) -> 60.52677781 | Z44: 33.38583333
N45: 37 | O45: =IF(Data!L60>=E$9,Data!L60-E$10,0) -> 0 | P45: =IF(O45>0,P44+7.48*Data!M60*(Data!B60-Data!B59)/1440,0) -> 0 | Q45: =IF(O45>0,Q44+7.48*(4*PI()*(E$16/1440)*Data!N60)*(Data!B60-Data!B59)/LN(0.56146/((Data!P60^2*'C&J'!E$15)/(4*('C&J'!E$16/1440)*O45))),0) -> 0 | R45: 0 | T45: =Data!L60 -> 0 | U45: =Data!M60/Data!N60 ->  | W45: 36 | X45: 26.054 | Y45: =4*PI()*E$18/LN(0.56146/(Data!V$23^2*'C&J'!E$15/(4*'C&J'!E$18*'C&J'!X45/1440))) -> 60.25244114 | Z45: 34.054
N46: 38 | O46: =IF(Data!L61>=E$9,Data!L61-E$10,0) -> 0 | P46: =IF(O46>0,P45+7.48*Data!M61*(Data!B61-Data!B60)/1440,0) -> 0 | Q46: =IF(O46>0,Q45+7.48*(4*PI()*(E$16/1440)*Data!N61)*(Data!B61-Data!B60)/LN(0.56146/((Data!P61^2*'C&J'!E$15)/(4*('C&J'!E$16/1440)*O46))),0) -> 0 | R46: 0 | T46: =Data!L61 -> 0 | U46: =Data!M61/Data!N61 ->  | W46: 37 | X46: 26.72216666 | Y46: =4*PI()*E$18/LN(0.56146/(Data!V$23^2*'C&J'!E$15/(4*'C&J'!E$18*'C&J'!X46/1440))) -> 59.98743429 | Z46: 34.72216666
N47: 39 | O47: =IF(Data!L62>=E$9,Data!L62-E$10,0) -> 0 | P47: =IF(O47>0,P46+7.48*Data!M62*(Data!B62-Data!B61)/1440,0) -> 0 | Q47: =IF(O47>0,Q46+7.48*(4*PI()*(E$16/1440)*Data!N62)*(Data!B62-Data!B61)/LN(0.56146/((Data!P62^2*'C&J'!E$15)/(4*('C&J'!E$16/1440)*O47))),0) -> 0 | R47: 0 | T47: =Data!L62 -> 0 | U47: =Data!M62/Data!N62 ->  | W47: 38 | X47: 27.39033333 | Y47: =4*PI()*E$18/LN(0.56146/(Data!V$23^2*'C&J'!E$15/(4*'C&J'!E$18*'C&J'!X47/1440))) -> 59.73120849 | Z47: 35.39033333
N48: 40 | O48: =IF(Data!L63>=E$9,Data!L63-E$10,0) -> 0 | P48: =IF(O48>0,P47+7.48*Data!M63*(Data!B63-Data!B62)/1440,0) -> 0 | Q48: =IF(O48>0,Q47+7.48*(4*PI()*(E$16/1440)*Data!N63)*(Data!B63-Data!B62)/LN(0.56146/((Data!P63^2*'C&J'!E$15)/(4*('C&J'!E$16/1440)*O48))),0) -> 0 | R48: 0 | T48: =Data!L63 -> 0 | U48: =Data!M63/Data!N63 ->  | W48: 39 | X48: 28.05849999 | Y48: =4*PI()*E$18/LN(0.56146/(Data!V$23^2*'C&J'!E$15/(4*'C&J'!E$18*'C&J'!X48/1440))) -> 59.48326 | Z48: 36.05849999
J49: Height | N49: 41 | O49: =IF(Data!L64>=E$9,Data!L64-E$10,0) -> 0 | P49: =IF(O49>0,P48+7.48*Data!M64*(Data!B64-Data!B63)/1440,0) -> 0 | Q49: =IF(O49>0,Q48+7.48*(4*PI()*(E$16/1440)*Data!N64)*(Data!B64-Data!B63)/LN(0.56146/((Data!P64^2*'C&J'!E$15)/(4*('C&J'!E$16/1440)*O49))),0) -> 0 | R49: 0 | T49: =Data!L64 -> 0 | U49: =Data!M64/Data!N64 ->  | W49: 40 | X49: 28.72666666 | Y49: =4*PI()*E$18/LN(0.56146/(Data!V$23^2*'C&J'!E$15/(4*'C&J'!E$18*'C&J'!X49/1440))) -> 59.24312545 | Z49: 36.72666666
J50: 70 | N50: 42 | O50: =IF(Data!L65>=E$9,Data!L65-E$10,0) -> 0 | P50: =IF(O50>0,P49+7.48*Data!M65*(Data!B65-Data!B64)/1440,0) -> 0 | Q50: =IF(O50>0,Q49+7.48*(4*PI()*(E$16/1440)*Data!N65)*(Data!B65-Data!B64)/LN(0.56146/((Data!P65^2*'C&J'!E$15)/(4*('C&J'!E$16/1440)*O50))),0) -> 0 | R50: 0 | T50: =Data!L65 -> 0 | U50: =Data!M65/Data!N65 ->  | W50: 41 | X50: 29.39483333 | Y50: =4*PI()*E$18/LN(0.56146/(Data!V$23^2*'C&J'!E$15/(4*'C&J'!E$18*'C&J'!X50/1440))) -> 59.01037771 | Z50: 37.39483333
N51: 43 | O51: =IF(Data!L66>=E$9,Data!L66-E$10,0) -> 0 | P51: =IF(O51>0,P50+7.48*Data!M66*(Data!B66-Data!B65)/1440,0) -> 0 | Q51: =IF(O51>0,Q50+7.48*(4*PI()*(E$16/1440)*Data!N66)*(Data!B66-Data!B65)/LN(0.56146/((Data!P66^2*'C&J'!E$15)/(4*('C&J'!E$16/1440)*O51))),0) -> 0 | R51: 0 | T51: =Data!L66 -> 0 | U51: =Data!M66/Data!N66 ->  | W51: 42 | X51: 30.06299999 | Y51: =4*PI()*E$18/LN(0.56146/(Data!V$23^2*'C&J'!E$15/(4*'C&J'!E$18*'C&J'!X51/1440))) -> 58.78462232 | Z51: 38.06299999
N52: 44 | O52: =IF(Data!L67>=E$9,Data!L67-E$10,0) -> 0 | P52: =IF(O52>0,P51+7.48*Data!M67*(Data!B67-Data!B66)/1440,0) -> 0 | Q52: =IF(O52>0,Q51+7.48*(4*PI()*(E$16/1440)*Data!N67)*(Data!B67-Data!B66)/LN(0.56146/((Data!P67^2*'C&J'!E$15)/(4*('C&J'!E$16/1440)*O52))),0) -> 0 | R52: 0 | T52: =Data!L67 -> 0 | U52: =Data!M67/Data!N67 ->  | W52: 43 | X52: 30.73116666 | Y52: =4*PI()*E$18/LN(0.56146/(Data!V$23^2*'C&J'!E$15/(4*'C&J'!E$18*'C&J'!X52/1440))) -> 58.5654943 | Z52: 38.73116666
N53: 45 | O53: =IF(Data!L68>=E$9,Data!L68-E$10,0) -> 0 | P53: =IF(O53>0,P52+7.48*Data!M68*(Data!B68-Data!B67)/1440,0) -> 0 | Q53: =IF(O53>0,Q52+7.48*(4*PI()*(E$16/1440)*Data!N68)*(Data!B68-Data!B67)/LN(0.56146/((Data!P68^2*'C&J'!E$15)/(4*('C&J'!E$16/1440)*O53))),0) -> 0 | R53: 0 | T53: =Data!L68 -> 0 | U53: =Data!M68/Data!N68 ->  | W53: 44 | X53: 31.39933333 | Y53: =4*PI()*E$18/LN(0.56146/(Data!V$23^2*'C&J'!E$15/(4*'C&J'!E$18*'C&J'!X53/1440))) -> 58.35265534 | Z53: 39.39933333
N54: 46 | O54: =IF(Data!L69>=E$9,Data!L69-E$10,0) -> 0 | P54: =IF(O54>0,P53+7.48*Data!M69*(Data!B69-Data!B68)/1440,0) -> 0 | Q54: =IF(O54>0,Q53+7.48*(4*PI()*(E$16/1440)*Data!N69)*(Data!B69-Data!B68)/LN(0.56146/((Data!P69^2*'C&J'!E$15)/(4*('C&J'!E$16/1440)*O54))),0) -> 0 | R54: 0 | T54: =Data!L69 -> 0 | U54: =Data!M69/Data!N69 ->  | W54: 45 | X54: 32.06749999 | Y54: =4*PI()*E$18/LN(0.56146/(Data!V$23^2*'C&J'!E$15/(4*'C&J'!E$18*'C&J'!X54/1440))) -> 58.14579134 | Z54: 40.06749999
N55: 47 | O55: =IF(Data!L70>=E$9,Data!L70-E$10,0) -> 0 | P55: =IF(O55>0,P54+7.48*Data!M70*(Data!B70-Data!B69)/1440,0) -> 0 | Q55: =IF(O55>0,Q54+7.48*(4*PI()*(E$16/1440)*Data!N70)*(Data!B70-Data!B69)/LN(0.56146/((Data!P70^2*'C&J'!E$15)/(4*('C&J'!E$16/1440)*O55))),0) -> 0 | R55: 0 | T55: =Data!L70 -> 0 | U55: =Data!M70/Data!N70 ->  | W55: 46 | X55: 32.73566666 | Y55: =4*PI()*E$18/LN(0.56146/(Data!V$23^2*'C&J'!E$15/(4*'C&J'!E$18*'C&J'!X55/1440))) -> 57.94461019 | Z55: 40.73566666
N56: 48 | O56: =IF(Data!L71>=E$9,Data!L71-E$10,0) -> 0 | P56: =IF(O56>0,P55+7.48*Data!M71*(Data!B71-Data!B70)/1440,0) -> 0 | Q56: =IF(O56>0,Q55+7.48*(4*PI()*(E$16/1440)*Data!N71)*(Data!B71-Data!B70)/LN(0.56146/((Data!P71^2*'C&J'!E$15)/(4*('C&J'!E$16/1440)*O56))),0) -> 0 | R56: 0 | T56: =Data!L71 -> 0 | U56: =Data!M71/Data!N71 ->  | W56: 47 | X56: 33.40383333 | Y56: =4*PI()*E$18/LN(0.56146/(Data!V$23^2*'C&J'!E$15/(4*'C&J'!E$18*'C&J'!X56/1440))) -> 57.74883982 | Z56: 41.40383333
N57: 49 | O57: =IF(Data!L72>=E$9,Data!L72-E$10,0) -> 0 | P57: =IF(O57>0,P56+7.48*Data!M72*(Data!B72-Data!B71)/1440,0) -> 0 | Q57: =IF(O57>0,Q56+7.48*(4*PI()*(E$16/1440)*Data!N72)*(Data!B72-Data!B71)/LN(0.56146/((Data!P72^2*'C&J'!E$15)/(4*('C&J'!E$16/1440)*O57))),0) -> 0 | R57: 0 | T57: =Data!L72 -> 0 | U57: =Data!M72/Data!N72 ->  | W57: 48 | X57: 34.07199999 | Y57: =4*PI()*E$18/LN(0.56146/(Data!V$23^2*'C&J'!E$15/(4*'C&J'!E$18*'C&J'!X57/1440))) -> 57.55822643 | Z57: 42.07199999
N58: 50 | O58: =IF(Data!L73>=E$9,Data!L73-E$10,0) -> 0 | P58: =IF(O58>0,P57+7.48*Data!M73*(Data!B73-Data!B72)/1440,0) -> 0 | Q58: =IF(O58>0,Q57+7.48*(4*PI()*(E$16/1440)*Data!N73)*(Data!B73-Data!B72)/LN(0.56146/((Data!P73^2*'C&J'!E$15)/(4*('C&J'!E$16/1440)*O58))),0) -> 0 | R58: 0 | T58: =Data!L73 -> 0 | U58: =Data!M73/Data!N73 ->  | W58: 49 | X58: 34.74016666 | Y58: =4*PI()*E$18/LN(0.56146/(Data!V$23^2*'C&J'!E$15/(4*'C&J'!E$18*'C&J'!X58/1440))) -> 57.37253296 | Z58: 42.74016666
T59: =Data!L74 -> 0 | U59: =Data!M74/Data!N74 ->  | W59: 50 | X59: 35.40833333 | Y59: =4*PI()*E$18/LN(0.56146/(Data!V$23^2*'C&J'!E$15/(4*'C&J'!E$18*'C&J'!X59/1440))) -> 57.19153764 | Z59: 43.40833333
T60: =Data!L75 -> 0 | U60: =Data!M75/Data!N75 -> 
T61: =Data!L76 -> 0 | U61: =Data!M76/Data!N76 -> 
T62: =Data!L77 -> 0 | U62: =Data!M77/Data!N77 -> 
T63: =Data!L78 -> 0 | U63: =Data!M78/Data!N78 -> 
T64: =Data!L79 -> 0 | U64: =Data!M79/Data!N79 -> 
T65: =Data!L80 -> 0 | U65: =Data!M80/Data!N80 -> 
T66: =Data!L81 -> 0 | U66: =Data!M81/Data!N81 -> 

Sheet CB&P (hidden)
A1: Cooper, Bredehoeft and Papadopulos (1967)
A2: Well Designation: | C2: =IF(Data!B1 > 0,Data!B1,"") -> HMW-44C | P2: e | Q2: 1e-06
A3: Date: | C3: =IF(Data!B2 > 0,Data!B2,"") -> 2009-08-12
B5: Enter early time cut-off for least-squares model fit
C6: Timecut (min): | E6: 12 | F6: <- Enter or change values here | N6: Count | O6: Time | P6: H/Ho | Q6: G (a,b,e) | R6: SE | X6: Time | Y6: H/Ho
B7: Initial Drawdown sn (ft): | E7: 0.115 | O7: (min) | T7: Index | U7: Time (min) | V7: G( ) | X7: (min)
N8: =IF(O8>0,1,0) -> 0 | O8: =IF(Data!B23>E$6,Data!B23-E$6,0) -> 0 | P8: =IF(N8>0,Data!J23/'CB&P'!E$7,0) -> 0 | Q8: =IF(N8>0,G(E$14,((-J$20)*'CB&P'!E$13/1440)*'CB&P'!O8/Data!V$23^2,'CB&P'!Q$2),0) -> 0 | R8: =N8*(P8-Q8)^2 -> 0 | T8: 0 | U8: =EXP(LN(J$15)+(LN(J$16)-LN(J$15))*T8/100) -> 0.2 | V8: =G('CB&P'!E$14,((-J$20)*'CB&P'!E$13/1440)*'CB&P'!U8/Data!V$23^2,0.00001) -> 0.8490903954 | X8: =IF(N8>0,O8,NA()) ->  | Y8: =IF(N8>0,P8,NA()) -> 
B9: Trial Sn: | E9: d | F9: <-- Enter d for default | N9: =IF(O9>0,1,0) -> 0 | O9: =IF(Data!B24>E$6,Data!B24-E$6,0) -> 0 | P9: =IF(N9>0,Data!J24/'CB&P'!E$7,0) -> 0 | Q9: =IF(N9>0,G(E$14,((-J$20)*'CB&P'!E$13/1440)*'CB&P'!O9/Data!V$23^2,'CB&P'!Q$2),0) -> 0 | R9: =N9*(P9-Q9)^2 -> 0 | T9: 1 | U9: 0.2089589107 | V9: =G('CB&P'!E$14,((-J$20)*'CB&P'!E$13/1440)*'CB&P'!U9/Data!V$23^2,0.00001) -> 0.8463447066 | X9: =IF(N9>0,O9,NA()) ->  | Y9: =IF(N9>0,P9,NA()) -> 
N10: 0 | O10: =IF(Data!B25>E$6,Data!B25-E$6,0) -> 0 | P10: =IF(N10>0,Data!J25/'CB&P'!E$7,0) -> 0 | Q10: =IF(N10>0,G(E$14,((-J$20)*'CB&P'!E$13/1440)*'CB&P'!O10/Data!V$23^2,'CB&P'!Q$2),0) -> 0 | R10: 0 | T10: 2 | U10: 0.2183191317 | V10: =G('CB&P'!E$14,((-J$20)*'CB&P'!E$13/1440)*'CB&P'!U10/Data!V$23^2,0.00001) -> 0.8435139355
B11: Root-Mean-Square Error: | E11: =SQRT(SUM(R8:R48)) -> 0.1362940377 | F11: <-- Minimize this using "Solver" | N11: 0 | O11: =IF(Data!B26>E$6,Data!B26-E$6,0) -> 0 | P11: =IF(N11>0,Data!J26/'CB&P'!E$7,0) -> 0 | Q11: =IF(N11>0,G(E$14,((-J$20)*'CB&P'!E$13/1440)*'CB&P'!O11/Data!V$23^2,'CB&P'!Q$2),0) -> 0 | R11: 0 | T11: 3 | U11: 0.2280986397 | V11: =G('CB&P'!E$14,((-J$20)*'CB&P'!E$13/1440)*'CB&P'!U11/Data!V$23^2,0.00001) -> 0.8405964637
N12: 0 | O12: =IF(Data!B27>E$6,Data!B27-E$6,0) -> 0 | P12: =IF(N12>0,Data!J27/'CB&P'!E$7,0) -> 0 | Q12: =IF(N12>0,G(E$14,((-J$20)*'CB&P'!E$13/1440)*'CB&P'!O12/Data!V$23^2,'CB&P'!Q$2),0) -> 0 | R12: 0 | T12: 4 | U12: 0.2383162163 | V12: =G('CB&P'!E$14,((-J$20)*'CB&P'!E$13/1440)*'CB&P'!U12/Data!V$23^2,0.00001) -> 0.8375906931
B13: Trial Tn (ft2/d): | E13: 21.76760013 | F13: <-- By changing Tn through "Solver" | N13: 0 | O13: =IF(Data!B28>E$6,Data!B28-E$6,0) -> 0 | P13: =IF(N13>0,Data!J28/'CB&P'!E$7,0) -> 0 | Q13: =IF(N13>0,G(E$14,((-J$20)*'CB&P'!E$13/1440)*'CB&P'!O13/Data!V$23^2,'CB&P'!Q$2),0) -> 0 | R13: 0 | T13: 5 | U13: 0.2489914848 | V13: =G('CB&P'!E$14,((-J$20)*'CB&P'!E$13/1440)*'CB&P'!U13/Data!V$23^2,0.00001) -> 0.8344950482
E14: =IF(E9="d",0.025*SQRT(E13),E9) -> 0.1166394019 | F14: <-- Working Sn | H14: Add constraint Tn > 0.00001 | N14: 0 | O14: =IF(Data!B29>E$6,Data!B29-E$6,0) -> 0 | P14: =IF(N14>0,Data!J29/'CB&P'!E$7,0) -> 0 | Q14: =IF(N14>0,G(E$14,((-J$20)*'CB&P'!E$13/1440)*'CB&P'!O14/Data!V$23^2,'CB&P'!Q$2),0) -> 0 | R14: 0 | T14: 6 | U14: 0.2601449471 | V14: =G('CB&P'!E$14,((-J$20)*'CB&P'!E$13/1440)*'CB&P'!U14/Data!V$23^2,0.00001) -> 0.8313079787
B15: Model Result: | D15: Tn (ft2/d) = | E15: =E13 -> 21.76760013 | I15: Tmin | J15: 0.2 | N15: 0 | O15: =IF(Data!B30>E$6,Data!B30-E$6,0) -> 0 | P15: =IF(N15>0,Data!J30/'CB&P'!E$7,0) -> 0 | Q15: =IF(N15>0,G(E$14,((-J$20)*'CB&P'!E$13/1440)*'CB&P'!O15/Data!V$23^2,'CB&P'!Q$2),0) -> 0 | R15: 0 | T15: 7 | U15: 0.2717980238 | V15: =G('CB&P'!E$14,((-J$20)*'CB&P'!E$13/1440)*'CB&P'!U15/Data!V$23^2,0.00001) -> 0.828027961
I16: Tmax | J16: 16 | N16: 0 | O16: =IF(Data!B31>E$6,Data!B31-E$6,0) -> 0 | P16: =IF(N16>0,Data!J31/'CB&P'!E$7,0) -> 0 | Q16: =IF(N16>0,G(E$14,((-J$20)*'CB&P'!E$13/1440)*'CB&P'!O16/Data!V$23^2,'CB&P'!Q$2),0) -> 0 | R16: 0 | T16: 8 | U16: 0.2839730949 | V16: =G('CB&P'!E$14,((-J$20)*'CB&P'!E$13/1440)*'CB&P'!U16/Data!V$23^2,0.00001) -> 0.8246535004
N17: 0 | O17: =IF(Data!B32>E$6,Data!B32-E$6,0) -> 0 | P17: =IF(N17>0,Data!J32/'CB&P'!E$7,0) -> 0 | Q17: =IF(N17>0,G(E$14,((-J$20)*'CB&P'!E$13/1440)*'CB&P'!O17/Data!V$23^2,'CB&P'!Q$2),0) -> 0 | R17: 0 | T17: 9 | U17: 0.2966935428 | V17: =G('CB&P'!E$14,((-J$20)*'CB&P'!E$13/1440)*'CB&P'!U17/Data!V$23^2,0.00001) -> 0.8211831329
N18: 0 | O18: =IF(Data!B33>E$6,Data!B33-E$6,0) -> 0 | P18: =IF(N18>0,Data!J33/'CB&P'!E$7,0) -> 0 | Q18: =IF(N18>0,G(E$14,((-J$20)*'CB&P'!E$13/1440)*'CB&P'!O18/Data!V$23^2,'CB&P'!Q$2),0) -> 0 | R18: 0 | T18: 10 | U18: 0.3099837975 | V18: =G('CB&P'!E$14,((-J$20)*'CB&P'!E$13/1440)*'CB&P'!U18/Data!V$23^2,0.00001) -> 0.817615427
J19: J-Ratio | N19: 0 | O19: =IF(Data!B34>E$6,Data!B34-E$6,0) -> 0 | P19: =IF(N19>0,Data!J34/'CB&P'!E$7,0) -> 0 | Q19: =IF(N19>0,G(E$14,((-J$20)*'CB&P'!E$13/1440)*'CB&P'!O19/Data!V$23^2,'CB&P'!Q$2),0) -> 0 | R19: 0 | T19: 11 | U19: 0.3238693832 | V19: =G('CB&P'!E$14,((-J$20)*'CB&P'!E$13/1440)*'CB&P'!U19/Data!V$23^2,0.00001) -> 0.8139489854
J20: =Figures!U27 -> -0.2574257426 | N20: 0 | O20: =IF(Data!B35>E$6,Data!B35-E$6,0) -> 0 | P20: =IF(N20>0,Data!J35/'CB&P'!E$7,0) -> 0 | Q20: =IF(N20>0,G(E$14,((-J$20)*'CB&P'!E$13/1440)*'CB&P'!O20/Data!V$23^2,'CB&P'!Q$2),0) -> 0 | R20: 0 | T20: 12 | U20: 0.3383769676 | V20: =G('CB&P'!E$14,((-J$20)*'CB&P'!E$13/1440)*'CB&P'!U20/Data!V$23^2,0.00001) -> 0.8101824465
N21: 1 | O21: =IF(Data!B36>E$6,Data!B36-E$6,0) -> 0.01666666777 | P21: =IF(N21>0,Data!J36/'CB&P'!E$7,0) -> 0.9565217391 | Q21: =IF(N21>0,G(E$14,((-J$20)*'CB&P'!E$13/1440)*'CB&P'!O21/Data!V$23^2,'CB&P'!Q$2),0) -> 0.9155172688 | R21: 0.001681366587 | T21: 13 | U21: 0.3535344127 | V21: =G('CB&P'!E$14,((-J$20)*'CB&P'!E$13/1440)*'CB&P'!U21/Data!V$23^2,0.00001) -> 0.8063144859 | X21: 0.01666666777 | Y21: 0.9565217391
N22: 1 | O22: =IF(Data!B37>E$6,Data!B37-E$6,0) -> 0.3333333351 | P22: =IF(N22>0,Data!J37/'CB&P'!E$7,0) -> 0.8695652174 | Q22: =IF(N22>0,G(E$14,((-J$20)*'CB&P'!E$13/1440)*'CB&P'!O22/Data!V$23^2,'CB&P'!Q$2),0) -> 0.811485154 | R22: 0.003373293768 | T22: 14 | U22: 0.3693708288 | V22: =G('CB&P'!E$14,((-J$20)*'CB&P'!E$13/1440)*'CB&P'!U22/Data!V$23^2,0.00001) -> 0.8023438178 | X22: 0.3333333351 | Y22: 0.8695652174
N23: 1 | O23: =IF(Data!B38>E$6,Data!B38-E$6,0) -> 0.7166666742 | P23: =IF(N23>0,Data!J38/'CB&P'!E$7,0) -> 0.7826086957 | Q23: =IF(N23>0,G(E$14,((-J$20)*'CB&P'!E$13/1440)*'CB&P'!O23/Data!V$23^2,'CB&P'!Q$2),0) -> 0.7290016399 | R23: 0.002873716426 | T23: 15 | U23: 0.38591663 | V23: =G('CB&P'!E$14,((-J$20)*'CB&P'!E$13/1440)*'CB&P'!U23/Data!V$23^2,0.00001) -> 0.7982691962 | X23: 0.7166666742 | Y23: 0.7826086957
N24: 1 | O24: =IF(Data!B39>E$6,Data!B39-E$6,0) -> 1.133333334 | P24: =IF(N24>0,Data!J39/'CB&P'!E$7,0) -> 0.6956521739 | Q24: =IF(N24>0,G(E$14,((-J$20)*'CB&P'!E$13/1440)*'CB&P'!O24/Data!V$23^2,'CB&P'!Q$2),0) -> 0.6628541812 | R24: 0.001075708323 | T24: 16 | U24: 0.4032035931 | V24: =G('CB&P'!E$14,((-J$20)*'CB&P'!E$13/1440)*'CB&P'!U24/Data!V$23^2,0.00001) -> 0.7940894166 | X24: 1.133333334 | Y24: 0.6956521739
N25: 1 | O25: =IF(Data!B40>E$6,Data!B40-E$6,0) -> 1.883333331 | P25: =IF(N25>0,Data!J40/'CB&P'!E$7,0) -> 0.6086956522 | Q25: =IF(N25>0,G(E$14,((-J$20)*'CB&P'!E$13/1440)*'CB&P'!O25/Data!V$23^2,'CB&P'!Q$2),0) -> 0.5748171525 | R25: 0.00114775274 | T25: 17 | U25: 0.4212649179 | V25: =G('CB&P'!E$14,((-J$20)*'CB&P'!E$13/1440)*'CB&P'!U25/Data!V$23^2,0.00001) -> 0.7898033166 | X25: 1.883333331 | Y25: 0.6086956522
N26: 1 | O26: =IF(Data!B41>E$6,Data!B41-E$6,0) -> 2.466666664 | P26: =IF(N26>0,Data!J41/'CB&P'!E$7,0) -> 0.5217391304 | Q26: =IF(N26>0,G(E$14,((-J$20)*'CB&P'!E$13/1440)*'CB&P'!O26/Data!V$23^2,'CB&P'!Q$2),0) -> 0.5224298034 | R26: 4.770290994e-07 | T26: 18 | U26: 0.4401352917 | V26: =G('CB&P'!E$14,((-J$20)*'CB&P'!E$13/1440)*'CB&P'!U26/Data!V$23^2,0.00001) -> 0.7854097775 | X26: 2.466666664 | Y26: 0.5217391304
N27: 1 | O27: =IF(Data!B42>E$6,Data!B42-E$6,0) -> 3.749999994 | P27: =IF(N27>0,Data!J42/'CB&P'!E$7,0) -> 0.4347826087 | Q27: =IF(N27>0,G(E$14,((-J$20)*'CB&P'!E$13/1440)*'CB&P'!O27/Data!V$23^2,'CB&P'!Q$2),0) -> 0.435550347 | R27: =N27*(P27-Q27)^2 -> 5.894220408e-07 | T27: 19 | U27: 0.4598509555 | V27: =G('CB&P'!E$14,((-J$20)*'CB&P'!E$13/1440)*'CB&P'!U27/Data!V$23^2,0.00001) -> 0.7809077256 | X27: 3.749999994 | Y27: 0.4347826087
N28: 1 | O28: =IF(Data!B43>E$6,Data!B43-E$6,0) -> 5.066666675 | P28: =IF(N28>0,Data!J43/'CB&P'!E$7,0) -> 0.347826087 | Q28: =IF(N28>0,G(E$14,((-J$20)*'CB&P'!E$13/1440)*'CB&P'!O28/Data!V$23^2,'CB&P'!Q$2),0) -> 0.3711703819 | R28: =N28*(P28-Q28)^2 -> 0.0005449561042 | T28: 20 | U28: 0.4804497736 | V28: =G('CB&P'!E$14,((-J$20)*'CB&P'!E$13/1440)*'CB&P'!U28/Data!V$23^2,0.00001) -> 0.7762961328 | X28: 5.066666675 | Y28: 0.347826087
N29: 1 | O29: =IF(Data!B44>E$6,Data!B44-E$6,0) -> 7.183333333 | P29: =IF(N29>0,Data!J44/'CB&P'!E$7,0) -> 0.2608695652 | Q29: =IF(N29>0,G(E$14,((-J$20)*'CB&P'!E$13/1440)*'CB&P'!O29/Data!V$23^2,'CB&P'!Q$2),0) -> 0.2977001162 | R29: 0.001356489483 | T29: 21 | U29: 0.5019713066 | V29: =G('CB&P'!E$14,((-J$20)*'CB&P'!E$13/1440)*'CB&P'!U29/Data!V$23^2,0.00001) -> 0.7715740186 | X29: 7.183333333 | Y29: 0.2608695652
N30: 1 | O30: =IF(Data!B45>E$6,Data!B45-E$6,0) -> 11.58333332 | P30: =IF(N30>0,Data!J45/'CB&P'!E$7,0) -> 0.1739130435 | Q30: =IF(N30>0,G(E$14,((-J$20)*'CB&P'!E$13/1440)*'CB&P'!O30/Data!V$23^2,'CB&P'!Q$2),0) -> 0.2059876051 | R30: 0.001028777504 | T30: 22 | U30: 0.524456887 | V30: =G('CB&P'!E$14,((-J$20)*'CB&P'!E$13/1440)*'CB&P'!U30/Data!V$23^2,0.00001) -> 0.7667404509 | X30: 11.58333332 | Y30: 0.1739130435
N31: 1 | O31: =IF(Data!B46>E$6,Data!B46-E$6,0) -> 15.23333333 | P31: =IF(N31>0,Data!J46/'CB&P'!E$7,0) -> 0.08695652174 | Q31: =IF(N31>0,G(E$14,((-J$20)*'CB&P'!E$13/1440)*'CB&P'!O31/Data!V$23^2,'CB&P'!Q$2),0) -> 0.1610708748 | R31: 0.005492937332 | T31: 23 | U31: 0.547949699 | V31: =G('CB&P'!E$14,((-J$20)*'CB&P'!E$13/1440)*'CB&P'!U31/Data!V$23^2,0.00001) -> 0.7617945478 | X31: 15.23333333 | Y31: 0.08695652174
N32: 0 | O32: =IF(Data!B47>E$6,Data!B47-E$6,0) -> 0 | P32: =IF(N32>0,Data!J47/'CB&P'!E$7,0) -> 0 | Q32: =IF(N32>0,G(E$14,((-J$20)*'CB&P'!E$13/1440)*'CB&P'!O32/Data!V$23^2,'CB&P'!Q$2),0) -> 0 | R32: 0 | T32: 24 | U32: 0.5724948609 | V32: =G('CB&P'!E$14,((-J$20)*'CB&P'!E$13/1440)*'CB&P'!U32/Data!V$23^2,0.00001) -> 0.756735479
N33: 0 | O33: =IF(Data!B48>E$6,Data!B48-E$6,0) -> 0 | P33: =IF(N33>0,Data!J48/'CB&P'!E$7,0) -> 0 | Q33: =IF(N33>0,G(E$14,((-J$20)*'CB&P'!E$13/1440)*'CB&P'!O33/Data!V$23^2,'CB&P'!Q$2),0) -> 0 | R33: 0 | T33: 25 | U33: 0.5981395125 | V33: =G('CB&P'!E$14,((-J$20)*'CB&P'!E$13/1440)*'CB&P'!U33/Data!V$23^2,0.00001) -> 0.7515624674
N34: 0 | O34: =IF(Data!B49>E$6,Data!B49-E$6,0) -> 0 | P34: =IF(N34>0,Data!J49/'CB&P'!E$7,0) -> 0 | Q34: =IF(N34>0,G(E$14,((-J$20)*'CB&P'!E$13/1440)*'CB&P'!O34/Data!V$23^2,'CB&P'!Q$2),0) -> 0 | R34: 0 | T34: 26 | U34: 0.6249329047 | V34: =G('CB&P'!E$14,((-J$20)*'CB&P'!E$13/1440)*'CB&P'!U34/Data!V$23^2,0.00001) -> 0.7462747915
N35: 0 | O35: =IF(Data!B50>E$6,Data!B50-E$6,0) -> 0 | P35: =IF(N35>0,Data!J50/'CB&P'!E$7,0) -> 0 | Q35: =IF(N35>0,G(E$14,((-J$20)*'CB&P'!E$13/1440)*'CB&P'!O35/Data!V$23^2,'CB&P'!Q$2),0) -> 0 | R35: 0 | T35: 27 | U35: 0.652926495 | V35: =G('CB&P'!E$14,((-J$20)*'CB&P'!E$13/1440)*'CB&P'!U35/Data!V$23^2,0.00001) -> 0.7408717871
N36: 0 | O36: =IF(Data!B51>E$6,Data!B51-E$6,0) -> 0 | P36: =IF(N36>0,Data!J51/'CB&P'!E$7,0) -> 0 | Q36: =IF(N36>0,G(E$14,((-J$20)*'CB&P'!E$13/1440)*'CB&P'!O36/Data!V$23^2,'CB&P'!Q$2),0) -> 0 | R36: 0 | T36: 28 | U36: 0.6821740457 | V36: =G('CB&P'!E$14,((-J$20)*'CB&P'!E$13/1440)*'CB&P'!U36/Data!V$23^2,0.00001) -> 0.7353528501
N37: 0 | O37: =IF(Data!B52>E$6,Data!B52-E$6,0) -> 0 | P37: =IF(N37>0,Data!J52/'CB&P'!E$7,0) -> 0 | Q37: =IF(N37>0,G(E$14,((-J$20)*'CB&P'!E$13/1440)*'CB&P'!O37/Data!V$23^2,'CB&P'!Q$2),0) -> 0 | R37: 0 | T37: 29 | U37: 0.7127317273 | V37: =G('CB&P'!E$14,((-J$20)*'CB&P'!E$13/1440)*'CB&P'!U37/Data!V$23^2,0.00001) -> 0.7297174389
N38: 0 | O38: =IF(Data!B53>E$6,Data!B53-E$6,0) -> 0 | P38: =IF(N38>0,Data!J53/'CB&P'!E$7,0) -> 0 | Q38: =IF(N38>0,G(E$14,((-J$20)*'CB&P'!E$13/1440)*'CB&P'!O38/Data!V$23^2,'CB&P'!Q$2),0) -> 0 | R38: 0 | T38: 30 | U38: 0.7446582267 | V38: =G('CB&P'!E$14,((-J$20)*'CB&P'!E$13/1440)*'CB&P'!U38/Data!V$23^2,0.00001) -> 0.7239650779
N39: 0 | O39: =IF(Data!B54>E$6,Data!B54-E$6,0) -> 0 | P39: =IF(N39>0,Data!J54/'CB&P'!E$7,0) -> 0 | Q39: =IF(N39>0,G(E$14,((-J$20)*'CB&P'!E$13/1440)*'CB&P'!O39/Data!V$23^2,'CB&P'!Q$2),0) -> 0 | R39: 0 | T39: 31 | U39: 0.7780148593 | V39: =G('CB&P'!E$14,((-J$20)*'CB&P'!E$13/1440)*'CB&P'!U39/Data!V$23^2,0.00001) -> 0.7180953603
N40: 0 | O40: =IF(Data!B55>E$6,Data!B55-E$6,0) -> 0 | P40: =IF(N40>0,Data!J55/'CB&P'!E$7,0) -> 0 | Q40: =IF(N40>0,G(E$14,((-J$20)*'CB&P'!E$13/1440)*'CB&P'!O40/Data!V$23^2,'CB&P'!Q$2),0) -> 0 | R40: 0 | T40: 32 | U40: =EXP(LN(J$15)+(LN(J$16)-LN(J$15))*T40/100) -> 0.8128656873 | V40: =G('CB&P'!E$14,((-J$20)*'CB&P'!E$13/1440)*'CB&P'!U40/Data!V$23^2,0.00001) -> 0.7121079525
N41: 0 | O41: =IF(Data!B56>E$6,Data!B56-E$6,0) -> 0 | P41: =IF(N41>0,Data!J56/'CB&P'!E$7,0) -> 0 | Q41: =IF(N41>0,G(E$14,((-J$20)*'CB&P'!E$13/1440)*'CB&P'!O41/Data!V$23^2,'CB&P'!Q$2),0) -> 0 | R41: 0 | T41: 33 | U41: 0.8492776426 | V41: =G('CB&P'!E$14,((-J$20)*'CB&P'!E$13/1440)*'CB&P'!U41/Data!V$23^2,0.00001) -> 0.7060025976
N42: 0 | O42: =IF(Data!B57>E$6,Data!B57-E$6,0) -> 0 | P42: =IF(N42>0,Data!J57/'CB&P'!E$7,0) -> 0 | Q42: =IF(N42>0,G(E$14,((-J$20)*'CB&P'!E$13/1440)*'CB&P'!O42/Data!V$23^2,'CB&P'!Q$2),0) -> 0 | R42: 0 | T42: 34 | U42: 0.8873206552 | V42: =G('CB&P'!E$14,((-J$20)*'CB&P'!E$13/1440)*'CB&P'!U42/Data!V$23^2,0.00001) -> 0.6997791201
N43: 0 | O43: =IF(Data!B58>E$6,Data!B58-E$6,0) -> 0 | P43: =IF(N43>0,Data!J58/'CB&P'!E$7,0) -> 0 | Q43: =IF(N43>0,G(E$14,((-J$20)*'CB&P'!E$13/1440)*'CB&P'!O43/Data!V$23^2,'CB&P'!Q$2),0) -> 0 | R43: 0 | T43: 35 | U43: 0.9270677876 | V43: =G('CB&P'!E$14,((-J$20)*'CB&P'!E$13/1440)*'CB&P'!U43/Data!V$23^2,0.00001) -> 0.6934374309
N44: 0 | O44: =IF(Data!B59>E$6,Data!B59-E$6,0) -> 0 | P44: =IF(N44>0,Data!J59/'CB&P'!E$7,0) -> 0 | Q44: =IF(N44>0,G(E$14,((-J$20)*'CB&P'!E$13/1440)*'CB&P'!O44/Data!V$23^2,'CB&P'!Q$2),0) -> 0 | R44: 0 | T44: 36 | U44: 0.968595375 | V44: =G('CB&P'!E$14,((-J$20)*'CB&P'!E$13/1440)*'CB&P'!U44/Data!V$23^2,0.00001) -> 0.6869775325
N45: 0 | O45: =IF(Data!B60>E$6,Data!B60-E$6,0) -> 0 | P45: =IF(N45>0,Data!J60/'CB&P'!E$7,0) -> 0 | Q45: =IF(N45>0,G(E$14,((-J$20)*'CB&P'!E$13/1440)*'CB&P'!O45/Data!V$23^2,'CB&P'!Q$2),0) -> 0 | R45: 0 | T45: 37 | U45: 1.011983172 | V45: =G('CB&P'!E$14,((-J$20)*'CB&P'!E$13/1440)*'CB&P'!U45/Data!V$23^2,0.00001) -> 0.6803995243
N46: 0 | O46: =IF(Data!B61>E$6,Data!B61-E$6,0) -> 0 | P46: =IF(N46>0,Data!J61/'CB&P'!E$7,0) -> 0 | Q46: =IF(N46>0,G(E$14,((-J$20)*'CB&P'!E$13/1440)*'CB&P'!O46/Data!V$23^2,'CB&P'!Q$2),0) -> 0 | R46: 0 | T46: 38 | U46: 1.057314506 | V46: =G('CB&P'!E$14,((-J$20)*'CB&P'!E$13/1440)*'CB&P'!U46/Data!V$23^2,0.00001) -> 0.6737036089
N47: 0 | O47: =IF(Data!B62>E$6,Data!B62-E$6,0) -> 0 | P47: =IF(N47>0,Data!J62/'CB&P'!E$7,0) -> 0 | Q47: =IF(N47>0,G(E$14,((-J$20)*'CB&P'!E$13/1440)*'CB&P'!O47/Data!V$23^2,'CB&P'!Q$2),0) -> 0 | R47: 0 | T47: 39 | U47: 1.104676437 | V47: =G('CB&P'!E$14,((-J$20)*'CB&P'!E$13/1440)*'CB&P'!U47/Data!V$23^2,0.00001) -> 0.6668900984
N48: 0 | O48: =IF(Data!B63>E$6,Data!B63-E$6,0) -> 0 | P48: =IF(N48>0,Data!J63/'CB&P'!E$7,0) -> 0 | Q48: =IF(N48>0,G(E$14,((-J$20)*'CB&P'!E$13/1440)*'CB&P'!O48/Data!V$23^2,'CB&P'!Q$2),0) -> 0 | R48: 0 | T48: 40 | U48: 1.154159925 | V48: =G('CB&P'!E$14,((-J$20)*'CB&P'!E$13/1440)*'CB&P'!U48/Data!V$23^2,0.00001) -> 0.659959421
T49: 41 | U49: 1.205860003 | V49: =G('CB&P'!E$14,((-J$20)*'CB&P'!E$13/1440)*'CB&P'!U49/Data!V$23^2,0.00001) -> 0.6529120538
T50: 42 | U50: 1.259875963 | V50: =G('CB&P'!E$14,((-J$20)*'CB&P'!E$13/1440)*'CB&P'!U50/Data!V$23^2,0.00001) -> 0.6457488521
T51: 43 | U51: 1.316311544 | V51: =G('CB&P'!E$14,((-J$20)*'CB&P'!E$13/1440)*'CB&P'!U51/Data!V$23^2,0.00001) -> 0.6384705262
T52: 44 | U52: 1.375275132 | V52: =G('CB&P'!E$14,((-J$20)*'CB&P'!E$13/1440)*'CB&P'!U52/Data!V$23^2,0.00001) -> 0.6310780429
T53: 45 | U53: 1.436879967 | V53: =G('CB&P'!E$14,((-J$20)*'CB&P'!E$13/1440)*'CB&P'!U53/Data!V$23^2,0.00001) -> 0.6235725217
T54: 46 | U54: 1.501244363 | V54: =G('CB&P'!E$14,((-J$20)*'CB&P'!E$13/1440)*'CB&P'!U54/Data!V$23^2,0.00001) -> 0.615955242
T55: 47 | U55: 1.568491934 | V55: =G('CB&P'!E$14,((-J$20)*'CB&P'!E$13/1440)*'CB&P'!U55/Data!V$23^2,0.00001) -> 0.608227652
T56: 48 | U56: 1.638751829 | V56: =G('CB&P'!E$14,((-J$20)*'CB&P'!E$13/1440)*'CB&P'!U56/Data!V$23^2,0.00001) -> 0.6003913758
T57: 49 | U57: 1.712158985 | V57: =G('CB&P'!E$14,((-J$20)*'CB&P'!E$13/1440)*'CB&P'!U57/Data!V$23^2,0.00001) -> 0.5924482221
T58: 50 | U58: 1.788854382 | V58: =G('CB&P'!E$14,((-J$20)*'CB&P'!E$13/1440)*'CB&P'!U58/Data!V$23^2,0.00001) -> 0.5844001916
T59: 51 | U59: 1.868985315 | V59: =G('CB&P'!E$14,((-J$20)*'CB&P'!E$13/1440)*'CB&P'!U59/Data!V$23^2,0.00001) -> 0.5762494842
T60: 52 | U60: 1.952705677 | V60: =G('CB&P'!E$14,((-J$20)*'CB&P'!E$13/1440)*'CB&P'!U60/Data!V$23^2,0.00001) -> 0.5679985069
T61: 53 | U61: 2.040176256 | V61: =G('CB&P'!E$14,((-J$20)*'CB&P'!E$13/1440)*'CB&P'!U61/Data!V$23^2,0.00001) -> 0.5596503672
T62: 54 | U62: 2.13156504 | V62: =G('CB&P'!E$14,((-J$20)*'CB&P'!E$13/1440)*'CB&P'!U62/Data!V$23^2,0.00001) -> 0.5512069295
T63: 55 | U63: 2.227047543 | V63: =G('CB&P'!E$14,((-J$20)*'CB&P'!E$13/1440)*'CB&P'!U63/Data!V$23^2,0.00001) -> 0.5426717494
T64: 56 | U64: 2.326807143 | V64: =G('CB&P'!E$14,((-J$20)*'CB&P'!E$13/1440)*'CB&P'!U64/Data!V$23^2,0.00001) -> 0.5340481254
T65: 57 | U65: 2.43103543 | V65: =G('CB&P'!E$14,((-J$20)*'CB&P'!E$13/1440)*'CB&P'!U65/Data!V$23^2,0.00001) -> 0.5253395921
T66: 58 | U66: 2.539932576 | V66: =G('CB&P'!E$14,((-J$20)*'CB&P'!E$13/1440)*'CB&P'!U66/Data!V$23^2,0.00001) -> 0.5165499248
T67: 59 | U67: 2.653707721 | V67: =G('CB&P'!E$14,((-J$20)*'CB&P'!E$13/1440)*'CB&P'!U67/Data!V$23^2,0.00001) -> 0.5076831425
T68: 60 | U68: 2.772579373 | V68: =G('CB&P'!E$14,((-J$20)*'CB&P'!E$13/1440)*'CB&P'!U68/Data!V$23^2,0.00001) -> 0.498743511
T69: 61 | U69: 2.896775827 | V69: =G('CB&P'!E$14,((-J$20)*'CB&P'!E$13/1440)*'CB&P'!U69/Data!V$23^2,0.00001) -> 0.4897355439
T70: 62 | U70: 3.026535606 | V70: =G('CB&P'!E$14,((-J$20)*'CB&P'!E$13/1440)*'CB&P'!U70/Data!V$23^2,0.00001) -> 0.4806640036
T71: 63 | U71: 3.162107917 | V71: =G('CB&P'!E$14,((-J$20)*'CB&P'!E$13/1440)*'CB&P'!U71/Data!V$23^2,0.00001) -> 0.4715339008
T72: 64 | U72: =EXP(LN(J$15)+(LN(J$16)-LN(J$15))*T72/100) -> 3.303753128 | V72: =G('CB&P'!E$14,((-J$20)*'CB&P'!E$13/1440)*'CB&P'!U72/Data!V$23^2,0.00001) -> 0.462350493
T73: 65 | U73: 3.451743274 | V73: =G('CB&P'!E$14,((-J$20)*'CB&P'!E$13/1440)*'CB&P'!U73/Data!V$23^2,0.00001) -> 0.4531192815
T74: 66 | U74: 3.606362571 | V74: =G('CB&P'!E$14,((-J$20)*'CB&P'!E$13/1440)*'CB&P'!U74/Data!V$23^2,0.00001) -> 0.4438460077
T75: 67 | U75: 3.767907972 | V75: =G('CB&P'!E$14,((-J$20)*'CB&P'!E$13/1440)*'CB&P'!U75/Data!V$23^2,0.00001) -> 0.4345366476
T76: 68 | U76: 3.936689726 | V76: =G('CB&P'!E$14,((-J$20)*'CB&P'!E$13/1440)*'CB&P'!U76/Data!V$23^2,0.00001) -> 0.4251974049
T77: 69 | U77: 4.113031984 | V77: =G('CB&P'!E$14,((-J$20)*'CB&P'!E$13/1440)*'CB&P'!U77/Data!V$23^2,0.00001) -> 0.4158347034
T78: 70 | U78: 4.297273414 | V78: =G('CB&P'!E$14,((-J$20)*'CB&P'!E$13/1440)*'CB&P'!U78/Data!V$23^2,0.00001) -> 0.4064551765
T79: 71 | U79: 4.489767857 | V79: =G('CB&P'!E$14,((-J$20)*'CB&P'!E$13/1440)*'CB&P'!U79/Data!V$23^2,0.00001) -> 0.3970656569
T80: 72 | U80: 4.690885002 | V80: =G('CB&P'!E$14,((-J$20)*'CB&P'!E$13/1440)*'CB&P'!U80/Data!V$23^2,0.00001) -> 0.3876731635
T81: 73 | U81: 4.901011101 | V81: =G('CB&P'!E$14,((-J$20)*'CB&P'!E$13/1440)*'CB&P'!U81/Data!V$23^2,0.00001) -> 0.3782848869
T82: 74 | U82: 5.120549703 | V82: =G('CB&P'!E$14,((-J$20)*'CB&P'!E$13/1440)*'CB&P'!U82/Data!V$23^2,0.00001) -> 0.3689081743
T83: 75 | U83: 5.34992244 | V83: =G('CB&P'!E$14,((-J$20)*'CB&P'!E$13/1440)*'CB&P'!U83/Data!V$23^2,0.00001) -> 0.3595505115
T84: 76 | U84: 5.589569826 | V84: =G('CB&P'!E$14,((-J$20)*'CB&P'!E$13/1440)*'CB&P'!U84/Data!V$23^2,0.00001) -> 0.3502147323
T85: 77 | U85: 5.839952109 | V85: =G('CB&P'!E$14,((-J$20)*'CB&P'!E$13/1440)*'CB&P'!U85/Data!V$23^2,0.00001) -> 0.3409228577
T86: 78 | U86: 6.101550155 | V86: =G('CB&P'!E$14,((-J$20)*'CB&P'!E$13/1440)*'CB&P'!U86/Data!V$23^2,0.00001) -> 0.3316683549
T87: 79 | U87: 6.374866368 | V87: =G('CB&P'!E$14,((-J$20)*'CB&P'!E$13/1440)*'CB&P'!U87/Data!V$23^2,0.00001) -> 0.3224638041
T88: 80 | U88: 6.660425659 | V88: =G('CB&P'!E$14,((-J$20)*'CB&P'!E$13/1440)*'CB&P'!U88/Data!V$23^2,0.00001) -> 0.3133171437
T89: 81 | U89: 6.958776451 | V89: =G('CB&P'!E$14,((-J$20)*'CB&P'!E$13/1440)*'CB&P'!U89/Data!V$23^2,0.00001) -> 0.3042361977
T90: 82 | U90: 7.270491734 | V90: =G('CB&P'!E$14,((-J$20)*'CB&P'!E$13/1440)*'CB&P'!U90/Data!V$23^2,0.00001) -> 0.2952288171
T91: 83 | U91: 7.596170163 | V91: =G('CB&P'!E$14,((-J$20)*'CB&P'!E$13/1440)*'CB&P'!U91/Data!V$23^2,0.00001) -> 0.2863028017
T92: 84 | U92: 7.936437212 | V92: =G('CB&P'!E$14,((-J$20)*'CB&P'!E$13/1440)*'CB&P'!U92/Data!V$23^2,0.00001) -> 0.2774658718
T93: 85 | U93: 8.291946371 | V93: =G('CB&P'!E$14,((-J$20)*'CB&P'!E$13/1440)*'CB&P'!U93/Data!V$23^2,0.00001) -> 0.2687256392
T94: 86 | U94: 8.663380405 | V94: =G('CB&P'!E$14,((-J$20)*'CB&P'!E$13/1440)*'CB&P'!U94/Data!V$23^2,0.00001) -> 0.2600895778
T95: 87 | U95: 9.05145266 | V95: =G('CB&P'!E$14,((-J$20)*'CB&P'!E$13/1440)*'CB&P'!U95/Data!V$23^2,0.00001) -> 0.251564994
T96: 88 | U96: 9.456908438 | V96: =G('CB&P'!E$14,((-J$20)*'CB&P'!E$13/1440)*'CB&P'!U96/Data!V$23^2,0.00001) -> 0.2431589969
T97: 89 | U97: 9.880526427 | V97: =G('CB&P'!E$14,((-J$20)*'CB&P'!E$13/1440)*'CB&P'!U97/Data!V$23^2,0.00001) -> 0.2348784685
T98: 90 | U98: 10.32312019 | V98: =G('CB&P'!E$14,((-J$20)*'CB&P'!E$13/1440)*'CB&P'!U98/Data!V$23^2,0.00001) -> 0.226730035
T99: 91 | U99: 10.78553975 | V99: =G('CB&P'!E$14,((-J$20)*'CB&P'!E$13/1440)*'CB&P'!U99/Data!V$23^2,0.00001) -> 0.2187200382
T100: 92 | U100: 11.26867319 | V100: =G('CB&P'!E$14,((-J$20)*'CB&P'!E$13/1440)*'CB&P'!U100/Data!V$23^2,0.00001) -> 0.2108545081
T101: 93 | U101: 11.77344837 | V101: =G('CB&P'!E$14,((-J$20)*'CB&P'!E$13/1440)*'CB&P'!U101/Data!V$23^2,0.00001) -> 0.2031391369
T102: 94 | U102: 12.30083473 | V102: =G('CB&P'!E$14,((-J$20)*'CB&P'!E$13/1440)*'CB&P'!U102/Data!V$23^2,0.00001) -> 0.195579254
T103: 95 | U103: 12.85184512 | V103: =G('CB&P'!E$14,((-J$20)*'CB&P'!E$13/1440)*'CB&P'!U103/Data!V$23^2,0.00001) -> 0.1881798035
T104: 96 | U104: =EXP(LN(J$15)+(LN(J$16)-LN(J$15))*T104/100) -> 13.42753779 | V104: =G('CB&P'!E$14,((-J$20)*'CB&P'!E$13/1440)*'CB&P'!U104/Data!V$23^2,0.00001) -> 0.1809450997
T105: 97 | U105: 14.02901834 | V105: =G('CB&P'!E$14,((-J$20)*'CB&P'!E$13/1440)*'CB&P'!U105/Data!V$23^2,0.00001) -> 0.1738797149
T106: 98 | U106: 14.65744195 | V106: =G('CB&P'!E$14,((-J$20)*'CB&P'!E$13/1440)*'CB&P'!U106/Data!V$23^2,0.00001) -> 0.166987083
T107: 99 | U107: 15.31401552 | V107: =G('CB&P'!E$14,((-J$20)*'CB&P'!E$13/1440)*'CB&P'!U107/Data!V$23^2,0.00001) -> 0.1602704191
T108: 100 | U108: 16 | V108: =G('CB&P'!E$14,((-J$20)*'CB&P'!E$13/1440)*'CB&P'!U108/Data!V$23^2,0.00001) -> 0.1537324721

Sheet B&R Type Curve (hidden)
A1: Bouwer and Rice Short Term LNAPL Mobility Test Type Curves
A2: =CONCATENATE("B&R Type Curves: Casing Rad. (ft) = ",Data!B6," ; Borehole Rad. (ft) = ",Data!B7) -> B&R Type Curves: Casing Rad. (ft) = 0.083 ; Borehole Rad. (ft) = 0.354
D5: Enter these values
A6: Type Curve ID | B6: Type Curve Name | C6: Notes | D6: Max Time (min) | E6: Transmissivity (ft2/day)
A7: 1 | B7: =CONCATENATE("T=",E7," ft2/day") -> T=10 ft2/day | D7: 150 | E7: 10 | G7: J-Ratio | K7: Type Curve 1 | N7: Type Curve 2 | Q7: Type Curve 3 | T7: Type Curve 4 | W7: Type Curve 5 | Z7: Type Curve 6 | AC7: Type Curve 7
A8: 2 | B8: T=5 ft2/day | D8: 200 | E8: 5 | G8: =Figures!U27 -> -0.2574257426 | H8: <-- If uncertain use | L8: T (ft2/day) | O8: T (ft2/day) | R8: T (ft2/day) | U8: T (ft2/day) | X8: T (ft2/day) | AA8: T (ft2/day) | AD8: T (ft2/day)
A9: 3 | B9: T=2 ft2/day | D9: 200 | E9: 2 | H9: =-(1-Data!B9) -> -0.236 | L9: =E7 -> 10 | O9: =E8 -> 5 | R9: =E9 -> 2 | U9: =E10 -> 1 | X9: =E11 -> 0.5 | AA9: =E12 -> 0.2 | AD9: =E13 -> 0.1
A10: 4 | B10: T=1 ft2/day | D10: 200 | E10: 1
A11: 5 | B11: T=0.5 ft2/day | D11: 200 | E11: 0.5 | K11: t (min) | L11: s(t)/s0 | N11: t (min) | O11: s(t)/s0 | Q11: t (min) | R11: s(t)/s0 | T11: t (min) | U11: s(t)/s0 | W11: t (min) | X11: s(t)/s0 | Z11: t (min) | AA11: s(t)/s0 | AC11: t (min) | AD11: s(t)/s0
A12: 6 | B12: T=0.2 ft2/day | D12: 200 | E12: 0.2 | K12: 0 | L12: =EXP(-(2*L$9*(K12/1440)*(-G$8)/(Data!B$13^2*LN('B&R'!$J$12)))) -> 1 | N12: 0 | O12: =EXP(-(2*O$9*(N12/1440)*(-G$8))/(Data!B$13^2*LN('B&R'!$J$12))) -> 1 | Q12: 0 | R12: =EXP(-(2*R$9*(Q12/1440)*(-G$8))/(Data!B$13^2*LN('B&R'!$J$12))) -> 1 | T12: 0 | U12: =EXP(-(2*U$9*(T12/1440)*(-G$8))/(Data!B$13^2*LN('B&R'!J$12))) -> 1 | W12: 0 | X12: =EXP(-(2*X$9*(W12/1440)*(-G$8))/(Data!B$13^2*LN('B&R'!$J$12))) -> 1 | Z12: 0 | AA12: =EXP(-(2*AA$9*(Z12/1440)*(-G$8))/(Data!B$13^2*LN('B&R'!$J$12))) -> 1 | AC12: 0 | AD12: =EXP(-(2*AD$9*(AC12/1440)*(-G$8))/(Data!B$13^2*LN('B&R'!$J$12))) -> 1
A13: 7 | B13: T=0.1 ft2/day | D13: 200 | E13: 0.1 | K13: =(K$42-K$12)/30+K12 -> 5 | L13: =EXP(-(2*L$9*(K13/1440)*(-G$8)/(Data!B$13^2*LN('B&R'!$J$12)))) -> 0.707198527 | N13: =(N$42-N$12)/30+N12 -> 6.666666667 | O13: =EXP(-(2*O$9*(N13/1440)*(-G$8))/(Data!B$13^2*LN('B&R'!$J$12))) -> 0.7937691786 | Q13: =(Q$42-Q$12)/30+Q12 -> 6.666666667 | R13: =EXP(-(2*R$9*(Q13/1440)*(-G$8))/(Data!B$13^2*LN('B&R'!$J$12))) -> 0.9117540322 | T13: =(T$42-T$12)/30+T12 -> 6.666666667 | U13: =EXP(-(2*U$9*(T13/1440)*(-G$8))/(Data!B$13^2*LN('B&R'!J$12))) -> 0.9548581215 | W13: =(W$42-W$12)/30+W12 -> 6.666666667 | X13: =EXP(-(2*X$9*(W13/1440)*(-G$8))/(Data!B$13^2*LN('B&R'!$J$12))) -> 0.9771684202 | Z13: =(Z$42-Z$12)/30+Z12 -> 6.666666667 | AA13: =EXP(-(2*AA$9*(Z13/1440)*(-G$8))/(Data!B$13^2*LN('B&R'!$J$12))) -> 0.9908040412 | AC13: =(AC$42-AC$12)/30+AC12 -> 6.666666667 | AD13: =EXP(-(2*AD$9*(AC13/1440)*(-G$8))/(Data!B$13^2*LN('B&R'!$J$12))) -> 0.995391401
K14: 10 | L14: =EXP(-(2*L$9*(K14/1440)*(-G$8)/(Data!B$13^2*LN('B&R'!$J$12)))) -> 0.5001297566 | N14: 13.33333333 | O14: =EXP(-(2*O$9*(N14/1440)*(-G$8))/(Data!B$13^2*LN('B&R'!$J$12))) -> 0.6300695089 | Q14: 13.33333333 | R14: =EXP(-(2*R$9*(Q14/1440)*(-G$8))/(Data!B$13^2*LN('B&R'!$J$12))) -> 0.8312954153 | T14: 13.33333333 | U14: =EXP(-(2*U$9*(T14/1440)*(-G$8))/(Data!B$13^2*LN('B&R'!J$12))) -> 0.9117540322 | W14: 13.33333333 | X14: =EXP(-(2*X$9*(W14/1440)*(-G$8))/(Data!B$13^2*LN('B&R'!$J$12))) -> 0.9548581215 | Z14: 13.33333333 | AA14: =EXP(-(2*AA$9*(Z14/1440)*(-G$8))/(Data!B$13^2*LN('B&R'!$J$12))) -> 0.981692648 | AC14: 13.33333333 | AD14: =EXP(-(2*AD$9*(AC14/1440)*(-G$8))/(Data!B$13^2*LN('B&R'!$J$12))) -> 0.9908040412
K15: 15 | L15: =EXP(-(2*L$9*(K15/1440)*(-G$8)/(Data!B$13^2*LN('B&R'!$J$12)))) -> 0.3536910272 | N15: 20 | O15: =EXP(-(2*O$9*(N15/1440)*(-G$8))/(Data!B$13^2*LN('B&R'!$J$12))) -> 0.5001297566 | Q15: 20 | R15: =EXP(-(2*R$9*(Q15/1440)*(-G$8))/(Data!B$13^2*LN('B&R'!$J$12))) -> 0.7579369468 | T15: 20 | U15: =EXP(-(2*U$9*(T15/1440)*(-G$8))/(Data!B$13^2*LN('B&R'!J$12))) -> 0.8705957425 | W15: 20 | X15: =EXP(-(2*X$9*(W15/1440)*(-G$8))/(Data!B$13^2*LN('B&R'!$J$12))) -> 0.9330572021 | Z15: 20 | AA15: =EXP(-(2*AA$9*(Z15/1440)*(-G$8))/(Data!B$13^2*LN('B&R'!$J$12))) -> 0.9726650428 | AC15: 20 | AD15: =EXP(-(2*AD$9*(AC15/1440)*(-G$8))/(Data!B$13^2*LN('B&R'!$J$12))) -> 0.9862378227
K16: 20 | L16: =EXP(-(2*L$9*(K16/1440)*(-G$8)/(Data!B$13^2*LN('B&R'!$J$12)))) -> 0.2501297734 | N16: 26.66666667 | O16: =EXP(-(2*O$9*(N16/1440)*(-G$8))/(Data!B$13^2*LN('B&R'!$J$12))) -> 0.3969875861 | Q16: 26.66666667 | R16: =EXP(-(2*R$9*(Q16/1440)*(-G$8))/(Data!B$13^2*LN('B&R'!$J$12))) -> 0.6910520674 | T16: 26.66666667 | U16: =EXP(-(2*U$9*(T16/1440)*(-G$8))/(Data!B$13^2*LN('B&R'!J$12))) -> 0.8312954153 | W16: 26.66666667 | X16: =EXP(-(2*X$9*(W16/1440)*(-G$8))/(Data!B$13^2*LN('B&R'!$J$12))) -> 0.9117540322 | Z16: 26.66666667 | AA16: =EXP(-(2*AA$9*(Z16/1440)*(-G$8))/(Data!B$13^2*LN('B&R'!$J$12))) -> 0.9637204551 | AC16: 26.66666667 | AD16: =EXP(-(2*AD$9*(AC16/1440)*(-G$8))/(Data!B$13^2*LN('B&R'!$J$12))) -> 0.981692648
K17: 25 | L17: =EXP(-(2*L$9*(K17/1440)*(-G$8)/(Data!B$13^2*LN('B&R'!$J$12)))) -> 0.1768914073 | N17: 33.33333333 | O17: =EXP(-(2*O$9*(N17/1440)*(-G$8))/(Data!B$13^2*LN('B&R'!$J$12))) -> 0.3151165101 | Q17: 33.33333333 | R17: =EXP(-(2*R$9*(Q17/1440)*(-G$8))/(Data!B$13^2*LN('B&R'!$J$12))) -> 0.6300695089 | T17: 33.33333333 | U17: =EXP(-(2*U$9*(T17/1440)*(-G$8))/(Data!B$13^2*LN('B&R'!J$12))) -> 0.7937691786 | W17: 33.33333333 | X17: =EXP(-(2*X$9*(W17/1440)*(-G$8))/(Data!B$13^2*LN('B&R'!$J$12))) -> 0.8909372473 | Z17: 33.33333333 | AA17: =EXP(-(2*AA$9*(Z17/1440)*(-G$8))/(Data!B$13^2*LN('B&R'!$J$12))) -> 0.9548581215 | AC17: 33.33333333 | AD17: =EXP(-(2*AD$9*(AC17/1440)*(-G$8))/(Data!B$13^2*LN('B&R'!$J$12))) -> 0.9771684202
K18: 30 | L18: =EXP(-(2*L$9*(K18/1440)*(-G$8)/(Data!B$13^2*LN('B&R'!$J$12)))) -> 0.1250973427 | N18: 40 | O18: =EXP(-(2*O$9*(N18/1440)*(-G$8))/(Data!B$13^2*LN('B&R'!$J$12))) -> 0.2501297734 | Q18: 40 | R18: =EXP(-(2*R$9*(Q18/1440)*(-G$8))/(Data!B$13^2*LN('B&R'!$J$12))) -> 0.5744684153 | T18: 40 | U18: =EXP(-(2*U$9*(T18/1440)*(-G$8))/(Data!B$13^2*LN('B&R'!J$12))) -> 0.7579369468 | W18: 40 | X18: =EXP(-(2*X$9*(W18/1440)*(-G$8))/(Data!B$13^2*LN('B&R'!$J$12))) -> 0.8705957425 | Z18: 40 | AA18: =EXP(-(2*AA$9*(Z18/1440)*(-G$8))/(Data!B$13^2*LN('B&R'!$J$12))) -> 0.9460772855 | AC18: 40 | AD18: =EXP(-(2*AD$9*(AC18/1440)*(-G$8))/(Data!B$13^2*LN('B&R'!$J$12))) -> 0.9726650428
K19: 35 | L19: =EXP(-(2*L$9*(K19/1440)*(-G$8)/(Data!B$13^2*LN('B&R'!$J$12)))) -> 0.08846865649 | N19: 46.66666667 | O19: =EXP(-(2*O$9*(N19/1440)*(-G$8))/(Data!B$13^2*LN('B&R'!$J$12))) -> 0.1985453048 | Q19: 46.66666667 | R19: =EXP(-(2*R$9*(Q19/1440)*(-G$8))/(Data!B$13^2*LN('B&R'!$J$12))) -> 0.5237738941 | T19: 46.66666667 | U19: =EXP(-(2*U$9*(T19/1440)*(-G$8))/(Data!B$13^2*LN('B&R'!J$12))) -> 0.7237222493 | W19: 46.66666667 | X19: =EXP(-(2*X$9*(W19/1440)*(-G$8))/(Data!B$13^2*LN('B&R'!$J$12))) -> 0.8507186663 | Z19: 46.66666667 | AA19: =EXP(-(2*AA$9*(Z19/1440)*(-G$8))/(Data!B$13^2*LN('B&R'!$J$12))) -> 0.9373771978 | AC19: 46.66666667 | AD19: =EXP(-(2*AD$9*(AC19/1440)*(-G$8))/(Data!B$13^2*LN('B&R'!$J$12))) -> 0.9681824197
K20: 40 | L20: =EXP(-(2*L$9*(K20/1440)*(-G$8)/(Data!B$13^2*LN('B&R'!$J$12)))) -> 0.06256490355 | N20: 53.33333333 | O20: =EXP(-(2*O$9*(N20/1440)*(-G$8))/(Data!B$13^2*LN('B&R'!$J$12))) -> 0.1575991435 | Q20: 53.33333333 | R20: =EXP(-(2*R$9*(Q20/1440)*(-G$8))/(Data!B$13^2*LN('B&R'!$J$12))) -> 0.4775529599 | T20: 53.33333333 | U20: =EXP(-(2*U$9*(T20/1440)*(-G$8))/(Data!B$13^2*LN('B&R'!J$12))) -> 0.6910520674 | W20: 53.33333333 | X20: =EXP(-(2*X$9*(W20/1440)*(-G$8))/(Data!B$13^2*LN('B&R'!$J$12))) -> 0.8312954153 | Z20: 53.33333333 | AA20: =EXP(-(2*AA$9*(Z20/1440)*(-G$8))/(Data!B$13^2*LN('B&R'!$J$12))) -> 0.9287571156 | AC20: 53.33333333 | AD20: =EXP(-(2*AD$9*(AC20/1440)*(-G$8))/(Data!B$13^2*LN('B&R'!$J$12))) -> 0.9637204551
K21: 45 | L21: =EXP(-(2*L$9*(K21/1440)*(-G$8)/(Data!B$13^2*LN('B&R'!$J$12)))) -> 0.04424580764 | N21: 60 | O21: =EXP(-(2*O$9*(N21/1440)*(-G$8))/(Data!B$13^2*LN('B&R'!$J$12))) -> 0.1250973427 | Q21: 60 | R21: =EXP(-(2*R$9*(Q21/1440)*(-G$8))/(Data!B$13^2*LN('B&R'!$J$12))) -> 0.4354108368 | T21: 60 | U21: =EXP(-(2*U$9*(T21/1440)*(-G$8))/(Data!B$13^2*LN('B&R'!J$12))) -> 0.659856679 | W21: 60 | X21: =EXP(-(2*X$9*(W21/1440)*(-G$8))/(Data!B$13^2*LN('B&R'!$J$12))) -> 0.8123156277 | Z21: 60 | AA21: =EXP(-(2*AA$9*(Z21/1440)*(-G$8))/(Data!B$13^2*LN('B&R'!$J$12))) -> 0.9202163035 | AC21: 60 | AD21: =EXP(-(2*AD$9*(AC21/1440)*(-G$8))/(Data!B$13^2*LN('B&R'!$J$12))) -> 0.959279054
K22: 50 | L22: =EXP(-(2*L$9*(K22/1440)*(-G$8)/(Data!B$13^2*LN('B&R'!$J$12)))) -> 0.03129056999 | N22: 66.66666667 | O22: =EXP(-(2*O$9*(N22/1440)*(-G$8))/(Data!B$13^2*LN('B&R'!$J$12))) -> 0.09929841496 | Q22: 66.66666667 | R22: =EXP(-(2*R$9*(Q22/1440)*(-G$8))/(Data!B$13^2*LN('B&R'!$J$12))) -> 0.3969875861 | T22: 66.66666667 | U22: =EXP(-(2*U$9*(T22/1440)*(-G$8))/(Data!B$13^2*LN('B&R'!J$12))) -> 0.6300695089 | W22: 66.66666667 | X22: =EXP(-(2*X$9*(W22/1440)*(-G$8))/(Data!B$13^2*LN('B&R'!$J$12))) -> 0.7937691786 | Z22: 66.66666667 | AA22: =EXP(-(2*AA$9*(Z22/1440)*(-G$8))/(Data!B$13^2*LN('B&R'!$J$12))) -> 0.9117540322 | AC22: 66.66666667 | AD22: =EXP(-(2*AD$9*(AC22/1440)*(-G$8))/(Data!B$13^2*LN('B&R'!$J$12))) -> 0.9548581215
K23: 55 | L23: =EXP(-(2*L$9*(K23/1440)*(-G$8)/(Data!B$13^2*LN('B&R'!$J$12)))) -> 0.022128645 | N23: 73.33333333 | O23: =EXP(-(2*O$9*(N23/1440)*(-G$8))/(Data!B$13^2*LN('B&R'!$J$12))) -> 0.07882002128 | Q23: 73.33333333 | R23: =EXP(-(2*R$9*(Q23/1440)*(-G$8))/(Data!B$13^2*LN('B&R'!$J$12))) -> 0.3619550324 | T23: 73.33333333 | U23: =EXP(-(2*U$9*(T23/1440)*(-G$8))/(Data!B$13^2*LN('B&R'!J$12))) -> 0.6016269877 | W23: 73.33333333 | X23: =EXP(-(2*X$9*(W23/1440)*(-G$8))/(Data!B$13^2*LN('B&R'!$J$12))) -> 0.7756461743 | Z23: 73.33333333 | AA23: =EXP(-(2*AA$9*(Z23/1440)*(-G$8))/(Data!B$13^2*LN('B&R'!$J$12))) -> 0.9033695797 | AC23: 73.33333333 | AD23: =EXP(-(2*AD$9*(AC23/1440)*(-G$8))/(Data!B$13^2*LN('B&R'!$J$12))) -> 0.9504575633
K24: 60 | L24: =EXP(-(2*L$9*(K24/1440)*(-G$8)/(Data!B$13^2*LN('B&R'!$J$12)))) -> 0.01564934515 | N24: 80 | O24: =EXP(-(2*O$9*(N24/1440)*(-G$8))/(Data!B$13^2*LN('B&R'!$J$12))) -> 0.06256490355 | Q24: 80 | R24: =EXP(-(2*R$9*(Q24/1440)*(-G$8))/(Data!B$13^2*LN('B&R'!$J$12))) -> 0.3300139602 | T24: 80 | U24: =EXP(-(2*U$9*(T24/1440)*(-G$8))/(Data!B$13^2*LN('B&R'!J$12))) -> 0.5744684153 | W24: 80 | X24: =EXP(-(2*X$9*(W24/1440)*(-G$8))/(Data!B$13^2*LN('B&R'!$J$12))) -> 0.7579369468 | Z24: 80 | AA24: =EXP(-(2*AA$9*(Z24/1440)*(-G$8))/(Data!B$13^2*LN('B&R'!$J$12))) -> 0.8950622302 | AC24: 80 | AD24: =EXP(-(2*AD$9*(AC24/1440)*(-G$8))/(Data!B$13^2*LN('B&R'!$J$12))) -> 0.9460772855
K25: 65 | L25: =EXP(-(2*L$9*(K25/1440)*(-G$8)/(Data!B$13^2*LN('B&R'!$J$12)))) -> 0.01106719384 | N25: 86.66666667 | O25: =EXP(-(2*O$9*(N25/1440)*(-G$8))/(Data!B$13^2*LN('B&R'!$J$12))) -> 0.0496620921 | Q25: 86.66666667 | R25: =EXP(-(2*R$9*(Q25/1440)*(-G$8))/(Data!B$13^2*LN('B&R'!$J$12))) -> 0.3008915589 | T25: 86.66666667 | U25: =EXP(-(2*U$9*(T25/1440)*(-G$8))/(Data!B$13^2*LN('B&R'!J$12))) -> 0.5485358319 | W25: 86.66666667 | X25: =EXP(-(2*X$9*(W25/1440)*(-G$8))/(Data!B$13^2*LN('B&R'!$J$12))) -> 0.740632049 | Z25: 86.66666667 | AA25: =EXP(-(2*AA$9*(Z25/1440)*(-G$8))/(Data!B$13^2*LN('B&R'!$J$12))) -> 0.8868312748 | AC25: 86.66666667 | AD25: =EXP(-(2*AD$9*(AC25/1440)*(-G$8))/(Data!B$13^2*LN('B&R'!$J$12))) -> 0.9417171947
K26: 70 | L26: =EXP(-(2*L$9*(K26/1440)*(-G$8)/(Data!B$13^2*LN('B&R'!$J$12)))) -> 0.007826703181 | N26: 93.33333333 | O26: =EXP(-(2*O$9*(N26/1440)*(-G$8))/(Data!B$13^2*LN('B&R'!$J$12))) -> 0.03942023806 | Q26: 93.33333333 | R26: =EXP(-(2*R$9*(Q26/1440)*(-G$8))/(Data!B$13^2*LN('B&R'!$J$12))) -> 0.2743390921 | T26: 93.33333333 | U26: =EXP(-(2*U$9*(T26/1440)*(-G$8))/(Data!B$13^2*LN('B&R'!J$12))) -> 0.5237738941 | W26: 93.33333333 | X26: =EXP(-(2*X$9*(W26/1440)*(-G$8))/(Data!B$13^2*LN('B&R'!$J$12))) -> 0.7237222493 | Z26: 93.33333333 | AA26: =EXP(-(2*AA$9*(Z26/1440)*(-G$8))/(Data!B$13^2*LN('B&R'!$J$12))) -> 0.8786760109 | AC26: 93.33333333 | AD26: =EXP(-(2*AD$9*(AC26/1440)*(-G$8))/(Data!B$13^2*LN('B&R'!$J$12))) -> 0.9373771978
K27: 75 | L27: =EXP(-(2*L$9*(K27/1440)*(-G$8)/(Data!B$13^2*LN('B&R'!$J$12)))) -> 0.005535032961 | N27: 100 | O27: =EXP(-(2*O$9*(N27/1440)*(-G$8))/(Data!B$13^2*LN('B&R'!$J$12))) -> 0.03129056999 | Q27: 100 | R27: =EXP(-(2*R$9*(Q27/1440)*(-G$8))/(Data!B$13^2*LN('B&R'!$J$12))) -> 0.2501297734 | T27: 100 | U27: =EXP(-(2*U$9*(T27/1440)*(-G$8))/(Data!B$13^2*LN('B&R'!J$12))) -> 0.5001297566 | W27: 100 | X27: =EXP(-(2*X$9*(W27/1440)*(-G$8))/(Data!B$13^2*LN('B&R'!$J$12))) -> 0.707198527 | Z27: 100 | AA27: =EXP(-(2*AA$9*(Z27/1440)*(-G$8))/(Data!B$13^2*LN('B&R'!$J$12))) -> 0.8705957425 | AC27: 100 | AD27: =EXP(-(2*AD$9*(AC27/1440)*(-G$8))/(Data!B$13^2*LN('B&R'!$J$12))) -> 0.9330572021
K28: 80 | L28: =EXP(-(2*L$9*(K28/1440)*(-G$8)/(Data!B$13^2*LN('B&R'!$J$12)))) -> 0.003914367157 | N28: 106.6666667 | O28: =EXP(-(2*O$9*(N28/1440)*(-G$8))/(Data!B$13^2*LN('B&R'!$J$12))) -> 0.02483749004 | Q28: 106.6666667 | R28: =EXP(-(2*R$9*(Q28/1440)*(-G$8))/(Data!B$13^2*LN('B&R'!$J$12))) -> 0.2280568295 | T28: 106.6666667 | U28: =EXP(-(2*U$9*(T28/1440)*(-G$8))/(Data!B$13^2*LN('B&R'!J$12))) -> 0.4775529599 | W28: 106.6666667 | X28: =EXP(-(2*X$9*(W28/1440)*(-G$8))/(Data!B$13^2*LN('B&R'!$J$12))) -> 0.6910520674 | Z28: 106.6666667 | AA28: =EXP(-(2*AA$9*(Z28/1440)*(-G$8))/(Data!B$13^2*LN('B&R'!$J$12))) -> 0.8625897799 | AC28: 106.6666667 | AD28: =EXP(-(2*AD$9*(AC28/1440)*(-G$8))/(Data!B$13^2*LN('B&R'!$J$12))) -> 0.9287571156
K29: 85 | L29: =EXP(-(2*L$9*(K29/1440)*(-G$8)/(Data!B$13^2*LN('B&R'!$J$12)))) -> 0.002768234687 | N29: 113.3333333 | O29: =EXP(-(2*O$9*(N29/1440)*(-G$8))/(Data!B$13^2*LN('B&R'!$J$12))) -> 0.01971523407 | Q29: 113.3333333 | R29: =EXP(-(2*R$9*(Q29/1440)*(-G$8))/(Data!B$13^2*LN('B&R'!$J$12))) -> 0.2079317339 | T29: 113.3333333 | U29: =EXP(-(2*U$9*(T29/1440)*(-G$8))/(Data!B$13^2*LN('B&R'!J$12))) -> 0.4559953222 | W29: 113.3333333 | X29: =EXP(-(2*X$9*(W29/1440)*(-G$8))/(Data!B$13^2*LN('B&R'!$J$12))) -> 0.675274257 | Z29: 113.3333333 | AA29: =EXP(-(2*AA$9*(Z29/1440)*(-G$8))/(Data!B$13^2*LN('B&R'!$J$12))) -> 0.8546574398 | AC29: 113.3333333 | AD29: =EXP(-(2*AD$9*(AC29/1440)*(-G$8))/(Data!B$13^2*LN('B&R'!$J$12))) -> 0.9244768465
K30: 90 | L30: =EXP(-(2*L$9*(K30/1440)*(-G$8)/(Data!B$13^2*LN('B&R'!$J$12)))) -> 0.001957691493 | N30: 120 | O30: =EXP(-(2*O$9*(N30/1440)*(-G$8))/(Data!B$13^2*LN('B&R'!$J$12))) -> 0.01564934515 | Q30: 120 | R30: =EXP(-(2*R$9*(Q30/1440)*(-G$8))/(Data!B$13^2*LN('B&R'!$J$12))) -> 0.1895825968 | T30: 120 | U30: =EXP(-(2*U$9*(T30/1440)*(-G$8))/(Data!B$13^2*LN('B&R'!J$12))) -> 0.4354108368 | W30: 120 | X30: =EXP(-(2*X$9*(W30/1440)*(-G$8))/(Data!B$13^2*LN('B&R'!$J$12))) -> 0.659856679 | Z30: 120 | AA30: =EXP(-(2*AA$9*(Z30/1440)*(-G$8))/(Data!B$13^2*LN('B&R'!$J$12))) -> 0.8467980451 | AC30: 120 | AD30: =EXP(-(2*AD$9*(AC30/1440)*(-G$8))/(Data!B$13^2*LN('B&R'!$J$12))) -> 0.9202163035
K31: 95 | L31: =EXP(-(2*L$9*(K31/1440)*(-G$8)/(Data!B$13^2*LN('B&R'!$J$12)))) -> 0.00138447654 | N31: 126.6666667 | O31: =EXP(-(2*O$9*(N31/1440)*(-G$8))/(Data!B$13^2*LN('B&R'!$J$12))) -> 0.01242196785 | Q31: 126.6666667 | R31: =EXP(-(2*R$9*(Q31/1440)*(-G$8))/(Data!B$13^2*LN('B&R'!$J$12))) -> 0.172852697 | T31: 126.6666667 | U31: =EXP(-(2*U$9*(T31/1440)*(-G$8))/(Data!B$13^2*LN('B&R'!J$12))) -> 0.4157555737 | W31: 126.6666667 | X31: =EXP(-(2*X$9*(W31/1440)*(-G$8))/(Data!B$13^2*LN('B&R'!$J$12))) -> 0.6447911086 | Z31: 126.6666667 | AA31: =EXP(-(2*AA$9*(Z31/1440)*(-G$8))/(Data!B$13^2*LN('B&R'!$J$12))) -> 0.8390109252 | AC31: 126.6666667 | AD31: =EXP(-(2*AD$9*(AC31/1440)*(-G$8))/(Data!B$13^2*LN('B&R'!$J$12))) -> 0.9159753955
K32: 100 | L32: =EXP(-(2*L$9*(K32/1440)*(-G$8)/(Data!B$13^2*LN('B&R'!$J$12)))) -> 0.00097909977 | N32: 133.3333333 | O32: =EXP(-(2*O$9*(N32/1440)*(-G$8))/(Data!B$13^2*LN('B&R'!$J$12))) -> 0.009860175214 | Q32: 133.3333333 | R32: =EXP(-(2*R$9*(Q32/1440)*(-G$8))/(Data!B$13^2*LN('B&R'!$J$12))) -> 0.1575991435 | T32: 133.3333333 | U32: =EXP(-(2*U$9*(T32/1440)*(-G$8))/(Data!B$13^2*LN('B&R'!J$12))) -> 0.3969875861 | W32: 133.3333333 | X32: =EXP(-(2*X$9*(W32/1440)*(-G$8))/(Data!B$13^2*LN('B&R'!$J$12))) -> 0.6300695089 | Z32: 133.3333333 | AA32: =EXP(-(2*AA$9*(Z32/1440)*(-G$8))/(Data!B$13^2*LN('B&R'!$J$12))) -> 0.8312954153 | AC32: 133.3333333 | AD32: =EXP(-(2*AD$9*(AC32/1440)*(-G$8))/(Data!B$13^2*LN('B&R'!$J$12))) -> 0.9117540322
K33: 105 | L33: =EXP(-(2*L$9*(K33/1440)*(-G$8)/(Data!B$13^2*LN('B&R'!$J$12)))) -> 0.0006924179151 | N33: 140 | O33: =EXP(-(2*O$9*(N33/1440)*(-G$8))/(Data!B$13^2*LN('B&R'!$J$12))) -> 0.007826703181 | Q33: 140 | R33: =EXP(-(2*R$9*(Q33/1440)*(-G$8))/(Data!B$13^2*LN('B&R'!$J$12))) -> 0.1436916546 | T33: 140 | U33: =EXP(-(2*U$9*(T33/1440)*(-G$8))/(Data!B$13^2*LN('B&R'!J$12))) -> 0.3790668207 | W33: 140 | X33: =EXP(-(2*X$9*(W33/1440)*(-G$8))/(Data!B$13^2*LN('B&R'!$J$12))) -> 0.6156840267 | Z33: 140 | AA33: =EXP(-(2*AA$9*(Z33/1440)*(-G$8))/(Data!B$13^2*LN('B&R'!$J$12))) -> 0.8236508568 | AC33: 140 | AD33: =EXP(-(2*AD$9*(AC33/1440)*(-G$8))/(Data!B$13^2*LN('B&R'!$J$12))) -> 0.9075521235
K34: 110 | L34: =EXP(-(2*L$9*(K34/1440)*(-G$8)/(Data!B$13^2*LN('B&R'!$J$12)))) -> 0.0004896769297 | N34: 146.6666667 | O34: =EXP(-(2*O$9*(N34/1440)*(-G$8))/(Data!B$13^2*LN('B&R'!$J$12))) -> 0.006212595755 | Q34: 146.6666667 | R34: =EXP(-(2*R$9*(Q34/1440)*(-G$8))/(Data!B$13^2*LN('B&R'!$J$12))) -> 0.1310114455 | T34: 146.6666667 | U34: =EXP(-(2*U$9*(T34/1440)*(-G$8))/(Data!B$13^2*LN('B&R'!J$12))) -> 0.3619550324 | W34: 146.6666667 | X34: =EXP(-(2*X$9*(W34/1440)*(-G$8))/(Data!B$13^2*LN('B&R'!$J$12))) -> 0.6016269877 | Z34: 146.6666667 | AA34: =EXP(-(2*AA$9*(Z34/1440)*(-G$8))/(Data!B$13^2*LN('B&R'!$J$12))) -> 0.8160765975 | AC34: 146.6666667 | AD34: =EXP(-(2*AD$9*(AC34/1440)*(-G$8))/(Data!B$13^2*LN('B&R'!$J$12))) -> 0.9033695797
K35: 115 | L35: =EXP(-(2*L$9*(K35/1440)*(-G$8)/(Data!B$13^2*LN('B&R'!$J$12)))) -> 0.0003462988034 | N35: 153.3333333 | O35: =EXP(-(2*O$9*(N35/1440)*(-G$8))/(Data!B$13^2*LN('B&R'!$J$12))) -> 0.00493136703 | Q35: 153.3333333 | R35: =EXP(-(2*R$9*(Q35/1440)*(-G$8))/(Data!B$13^2*LN('B&R'!$J$12))) -> 0.1194502137 | T35: 153.3333333 | U35: =EXP(-(2*U$9*(T35/1440)*(-G$8))/(Data!B$13^2*LN('B&R'!J$12))) -> 0.3456157023 | W35: 153.3333333 | X35: =EXP(-(2*X$9*(W35/1440)*(-G$8))/(Data!B$13^2*LN('B&R'!$J$12))) -> 0.5878908932 | Z35: 153.3333333 | AA35: =EXP(-(2*AA$9*(Z35/1440)*(-G$8))/(Data!B$13^2*LN('B&R'!$J$12))) -> 0.8085719907 | AC35: 153.3333333 | AD35: =EXP(-(2*AD$9*(AC35/1440)*(-G$8))/(Data!B$13^2*LN('B&R'!$J$12))) -> 0.8992063115
K36: 120 | L36: =EXP(-(2*L$9*(K36/1440)*(-G$8)/(Data!B$13^2*LN('B&R'!$J$12)))) -> 0.0002449020036 | N36: 160 | O36: =EXP(-(2*O$9*(N36/1440)*(-G$8))/(Data!B$13^2*LN('B&R'!$J$12))) -> 0.003914367157 | Q36: 160 | R36: =EXP(-(2*R$9*(Q36/1440)*(-G$8))/(Data!B$13^2*LN('B&R'!$J$12))) -> 0.1089092139 | T36: 160 | U36: =EXP(-(2*U$9*(T36/1440)*(-G$8))/(Data!B$13^2*LN('B&R'!J$12))) -> 0.3300139602 | W36: 160 | X36: =EXP(-(2*X$9*(W36/1440)*(-G$8))/(Data!B$13^2*LN('B&R'!$J$12))) -> 0.5744684153 | Z36: 160 | AA36: =EXP(-(2*AA$9*(Z36/1440)*(-G$8))/(Data!B$13^2*LN('B&R'!$J$12))) -> 0.8011363959 | AC36: 160 | AD36: =EXP(-(2*AD$9*(AC36/1440)*(-G$8))/(Data!B$13^2*LN('B&R'!$J$12))) -> 0.8950622302
K37: 125 | L37: =EXP(-(2*L$9*(K37/1440)*(-G$8)/(Data!B$13^2*LN('B&R'!$J$12)))) -> 0.0001731943362 | N37: 166.6666667 | O37: =EXP(-(2*O$9*(N37/1440)*(-G$8))/(Data!B$13^2*LN('B&R'!$J$12))) -> 0.003107104003 | Q37: 166.6666667 | R37: =EXP(-(2*R$9*(Q37/1440)*(-G$8))/(Data!B$13^2*LN('B&R'!$J$12))) -> 0.09929841496 | T37: 166.6666667 | U37: =EXP(-(2*U$9*(T37/1440)*(-G$8))/(Data!B$13^2*LN('B&R'!J$12))) -> 0.3151165101 | W37: 166.6666667 | X37: =EXP(-(2*X$9*(W37/1440)*(-G$8))/(Data!B$13^2*LN('B&R'!$J$12))) -> 0.5613523939 | Z37: 166.6666667 | AA37: =EXP(-(2*AA$9*(Z37/1440)*(-G$8))/(Data!B$13^2*LN('B&R'!$J$12))) -> 0.7937691786 | AC37: 166.6666667 | AD37: =EXP(-(2*AD$9*(AC37/1440)*(-G$8))/(Data!B$13^2*LN('B&R'!$J$12))) -> 0.8909372473
K38: 130 | L38: =EXP(-(2*L$9*(K38/1440)*(-G$8)/(Data!B$13^2*LN('B&R'!$J$12)))) -> 0.0001224827795 | N38: 173.3333333 | O38: =EXP(-(2*O$9*(N38/1440)*(-G$8))/(Data!B$13^2*LN('B&R'!$J$12))) -> 0.002466323392 | Q38: 173.3333333 | R38: =EXP(-(2*R$9*(Q38/1440)*(-G$8))/(Data!B$13^2*LN('B&R'!$J$12))) -> 0.09053573023 | T38: 173.3333333 | U38: =EXP(-(2*U$9*(T38/1440)*(-G$8))/(Data!B$13^2*LN('B&R'!J$12))) -> 0.3008915589 | W38: 173.3333333 | X38: =EXP(-(2*X$9*(W38/1440)*(-G$8))/(Data!B$13^2*LN('B&R'!$J$12))) -> 0.5485358319 | Z38: 173.3333333 | AA38: =EXP(-(2*AA$9*(Z38/1440)*(-G$8))/(Data!B$13^2*LN('B&R'!$J$12))) -> 0.7864697099 | AC38: 173.3333333 | AD38: =EXP(-(2*AD$9*(AC38/1440)*(-G$8))/(Data!B$13^2*LN('B&R'!$J$12))) -> 0.8868312748
K39: 135 | L39: =EXP(-(2*L$9*(K39/1440)*(-G$8)/(Data!B$13^2*LN('B&R'!$J$12)))) -> 8.661964122e-05 | N39: 180 | O39: =EXP(-(2*O$9*(N39/1440)*(-G$8))/(Data!B$13^2*LN('B&R'!$J$12))) -> 0.001957691493 | Q39: 180 | R39: =EXP(-(2*R$9*(Q39/1440)*(-G$8))/(Data!B$13^2*LN('B&R'!$J$12))) -> 0.0825463171 | T39: 180 | U39: =EXP(-(2*U$9*(T39/1440)*(-G$8))/(Data!B$13^2*LN('B&R'!J$12))) -> 0.2873087487 | W39: 180 | X39: =EXP(-(2*X$9*(W39/1440)*(-G$8))/(Data!B$13^2*LN('B&R'!$J$12))) -> 0.5360118923 | Z39: 180 | AA39: =EXP(-(2*AA$9*(Z39/1440)*(-G$8))/(Data!B$13^2*LN('B&R'!$J$12))) -> 0.7792373669 | AC39: 180 | AD39: =EXP(-(2*AD$9*(AC39/1440)*(-G$8))/(Data!B$13^2*LN('B&R'!$J$12))) -> 0.8827442251
K40: 140 | L40: =EXP(-(2*L$9*(K40/1440)*(-G$8)/(Data!B$13^2*LN('B&R'!$J$12)))) -> 6.125728268e-05 | N40: 186.6666667 | O40: =EXP(-(2*O$9*(N40/1440)*(-G$8))/(Data!B$13^2*LN('B&R'!$J$12))) -> 0.001553955169 | Q40: 186.6666667 | R40: =EXP(-(2*R$9*(Q40/1440)*(-G$8))/(Data!B$13^2*LN('B&R'!$J$12))) -> 0.07526193746 | T40: 186.6666667 | U40: =EXP(-(2*U$9*(T40/1440)*(-G$8))/(Data!B$13^2*LN('B&R'!J$12))) -> 0.2743390921 | W40: 186.6666667 | X40: =EXP(-(2*X$9*(W40/1440)*(-G$8))/(Data!B$13^2*LN('B&R'!$J$12))) -> 0.5237738941 | Z40: 186.6666667 | AA40: =EXP(-(2*AA$9*(Z40/1440)*(-G$8))/(Data!B$13^2*LN('B&R'!$J$12))) -> 0.7720715321 | AC40: 186.6666667 | AD40: =EXP(-(2*AD$9*(AC40/1440)*(-G$8))/(Data!B$13^2*LN('B&R'!$J$12))) -> 0.8786760109
K41: 145 | L41: =EXP(-(2*L$9*(K41/1440)*(-G$8)/(Data!B$13^2*LN('B&R'!$J$12)))) -> 4.332106008e-05 | N41: 193.3333333 | O41: =EXP(-(2*O$9*(N41/1440)*(-G$8))/(Data!B$13^2*LN('B&R'!$J$12))) -> 0.001233481718 | Q41: 193.3333333 | R41: =EXP(-(2*R$9*(Q41/1440)*(-G$8))/(Data!B$13^2*LN('B&R'!$J$12))) -> 0.06862037495 | T41: 193.3333333 | U41: =EXP(-(2*U$9*(T41/1440)*(-G$8))/(Data!B$13^2*LN('B&R'!J$12))) -> 0.2619549101 | W41: 193.3333333 | X41: =EXP(-(2*X$9*(W41/1440)*(-G$8))/(Data!B$13^2*LN('B&R'!$J$12))) -> 0.5118153086 | Z41: 193.3333333 | AA41: =EXP(-(2*AA$9*(Z41/1440)*(-G$8))/(Data!B$13^2*LN('B&R'!$J$12))) -> 0.7649715941 | AC41: 193.3333333 | AD41: =EXP(-(2*AD$9*(AC41/1440)*(-G$8))/(Data!B$13^2*LN('B&R'!$J$12))) -> 0.8746265455
K42: =$D$7 -> 150 | L42: =EXP(-(2*L$9*(K42/1440)*(-G$8)/(Data!B$13^2*LN('B&R'!$J$12)))) -> 3.063658988e-05 | N42: =$D$8 -> 200 | O42: =EXP(-(2*O$9*(N42/1440)*(-G$8))/(Data!B$13^2*LN('B&R'!$J$12))) -> 0.00097909977 | Q42: =$D$9 -> 200 | R42: =EXP(-(2*R$9*(Q42/1440)*(-G$8))/(Data!B$13^2*LN('B&R'!$J$12))) -> 0.06256490355 | T42: =$D$10 -> 200 | U42: =EXP(-(2*U$9*(T42/1440)*(-G$8))/(Data!B$13^2*LN('B&R'!J$12))) -> 0.2501297734 | W42: =$D$11 -> 200 | X42: =EXP(-(2*X$9*(W42/1440)*(-G$8))/(Data!B$13^2*LN('B&R'!$J$12))) -> 0.5001297566 | Z42: =$D$12 -> 200 | AA42: =EXP(-(2*AA$9*(Z42/1440)*(-G$8))/(Data!B$13^2*LN('B&R'!$J$12))) -> 0.7579369468 | AC42: =$D$13 -> 200 | AD42: =EXP(-(2*AD$9*(AC42/1440)*(-G$8))/(Data!B$13^2*LN('B&R'!$J$12))) -> 0.8705957425
A49: Field Data
A51: Record Data in Fields Below | G51: Calculate and Plot Fields Below
A52: Well ID | C52: Well Dia. (ft) | E52: Total Depth (ft)
A53: Notes | B53: Date | C53: Time | D53: Elapsed Time (min) | E53: Depth To Product (TOC) | F53: Depth to Water (TOC) | G53: Product Thickness (ft) | H53: Drawdown (s) DTP-DTP(initial) (ft) | I53: Normalized Drawdown (s/sinitial)
A54: Initial Measurement
A55: Stopped Bailing/Start Gauging | D55: 0
A56: Well Starts recovering

Sheet Confined
A1: Confined LNAPL Model: | E1: Well Designation: | G1: =IF(Data!B1 > 0,Data!B1,"") -> HMW-44C
E2: Date: | G2: =IF(Data!B2 > 0,Data!B2,"") -> 2009-08-12
A5: Depth to base of confining bed (ft bgs) [from boring log]: | B5: 29.35
A6: Constant LNAPL discharge to well (ft3/d): | B6: 8
L9: =Data!N24 -> 0.245 | M9: =B6 -> 8
L10: =B14 -> 0.09267015707 | M10: =M9 -> 8
A11: Depth to top of screen (ft bgs): | B11: =Data!B10 -> 27.2 | L11: 0 | M11: 0
A12: Corrected water table elevation (ft bgs): | B12: =Data!I21 -> 28.03796
A13: Limiting effective LNAPL thickness in well, bnW (ft): | B13: =IF(B5>B11,(B5-B12)/Data!B9,(B11-B12)/Data!B9) -> 1.717329843
A14: Limiting effective LNAPL drawdown, snW (ft): | B14: =(1-Data!B9)*(Confined!B15-Confined!B13) -> 0.09267015707
A15: Initial LNAPL thickness, bnR (ft): | B15: =Data!O21 -> 2.11
A16: Radius of influence ratio (from Bouwer and Rice), R/rw: | B16: ='B&R'!J12 -> 6.479645276
A19: LNAPL Transmissivity, Tn (ft2/d): | B19: =B6*LN(B16)/(2*PI()*(1-Data!B9)*(B15-B13)) -> 25.6744914

Sheet Perched (hidden)
A1: Perched LNAPL Model: | E1: Well Designation: | G1: =IF(Data!B1 > 0,Data!B1,"") -> HMW-44C
E2: Date: | G2: =IF(Data!B2 > 0,Data!B2,"") -> 2009-08-12
A5: Depth to top of perching layer, DZ12 (ft bgs): | B5: 37.5
A6: Constant LNAPL discharge to well (ft3/d): | B6: 0.4
L9: =Data!N24 -> 0.245 | M9: =B6 -> 0.4
L10: =B13 -> 9.96 | M10: =M9 -> 0.4
A11: Depth to top of screen (ft bgs): | B11: =Data!B10 -> 27.2 | L11: 0 | M11: 0
A12: Corrected water table elevation (ft bgs): | B12: =Data!I21 -> 28.03796
A13: Limiting effective LNAPL drawdown, snW (ft): | B13: =B5-B14 -> 9.96
A14: Initial depth to product (DTP0) (ft bgs): | B14: =Data!E21 -> 27.54
A15: Radius of influence ratio (from Bouwer and Rice), R/rw: | B15: ='B&R'!J12 -> 6.479645276
A18: LNAPL Transmissivity, Tn (ft2/d): | B18: =B6*LN(B15)/(2*PI()*B13) -> 0.01194407204

Sheet Flowchart
